Workbook

Sheet 总表
A1: 星期 | B1: 指标 日期 | C1: 店铺经营情况 | Q1: 钻展 | Z1: 直通车 | AI1: 淘客 | AL1: 付费
C2: 浏览量 | D2: 天猫搜索 | E2: 无线搜索 | F2: 访客数 | G2: 回访客占比 | H2: 跳失率 | I2: 下单件数 | J2: 人均成交件数 | K2: 付款金额 | L2: 客单价 | M2: 收藏量 | N2: 成交回头客占比 | O2: 全店成交转化率 | P2: 付费占比 | Q2: UV | R2: 消耗 (元) | S2: CTR | T2: CPC | U2: 加购数 | V2: 跳失率 | W2: 预算 | X2: 消耗率 | Y2: ROI | Z2: 花费 | AA2: 点击量 | AB2: PPC | AC2: 成交金额 | AD2: 成交笔数 | AE2: 收藏量 | AF2: 加购数 | AG2: 转化率 | AH2: ROI | AI2: 花费 | AJ2: 成交 | AK2: ROI | AL2: 总额
A3: =TEXT(B3,"aaa") -> 周日 | B3: =店铺经营详情!$A$3 -> 2015-11-01 | C3: =店铺经营详情!B3 -> 2997 | D3: =店铺经营详情!N3 -> 22222 | E3: =店铺经营详情!O3 -> 1111 | F3: =店铺经营详情!C3 -> 1152 | G3: =店铺经营详情!E3 -> 0.1476 | H3: =店铺经营详情!F3 -> 0.79 | I3: =店铺经营详情!AK3 -> 96 | J3: =店铺经营详情!AP3 -> 1.6429 | K3: =店铺经营详情!AM3 -> 75515.7 | L3: =店铺经营详情!AS3 -> 1797.992857 | M3: =店铺经营详情!AU3 -> 5 | N3: =店铺经营详情!AV3 -> 0.5952 | O3: =店铺经营详情!AW3 -> 0.0391 | P3: =IFERROR(AL3/K3,0) -> 0.0401023893 | Q3: =钻展!D2 -> 152 | R3: =钻展!E2 -> 988.66 | S3: =钻展!F2 -> 0.0091 | T3: =钻展!G2 -> 6.5 | U3: =钻展!N2 -> 32 | V3: =钻展!O2 -> 0.43 | W3: =钻展!P2 -> 1000 | X3: =钻展!Q2 -> 0.98866 | Y3: =IFERROR(钻展!T2,0) -> 1.416058099 | Z3: =直通车!B2 -> 2026.23 | AA3: =直通车!D2 -> 545 | AB3: =直通车!E2 -> 3.72 | AC3: =直通车!G2 -> 1488 | AD3: =直通车!H2 -> 1 | AE3: =直通车!I2 -> 11 | AF3: =直通车!J2 -> 14 | AG3: =直通车!K2 -> 0.0018 | AH3: =IFERROR(AC3/Z3,0) -> 0.7343687538 | AI3: =淘客!B2 -> 13.47 | AJ3: =淘客!C2 -> 134.64 | AK3: =淘客!E2 -> 22 | AL3: =IFERROR(R3+Z3+AI3,0) -> 3028.36
A4: 周一 | B4: =店铺经营详情!$A$4 -> 2015-11-02 | C4: =店铺经营详情!B4 -> 2997 | D4: =店铺经营详情!N4 -> 22222 | E4: =店铺经营详情!O4 -> 1111 | F4: =店铺经营详情!C4 -> 1152 | G4: =店铺经营详情!E4 -> 0.1476 | H4: =店铺经营详情!F4 -> 0.79 | I4: =店铺经营详情!AK4 -> 96 | J4: =店铺经营详情!AP4 -> 1.6429 | K4: =店铺经营详情!AM4 -> 75515.7 | L4: =店铺经营详情!AS4 -> 1797.992857 | M4: =店铺经营详情!AU4 -> 5 | N4: =店铺经营详情!AV4 -> 0.5952 | O4: =店铺经营详情!AW4 -> 0.0391 | P4: 0.0401023893 | Q4: =钻展!D3 -> 152 | R4: =钻展!E3 -> 988.66 | S4: =钻展!F3 -> 0.0091 | T4: =钻展!G3 -> 6.5 | U4: =钻展!N3 -> 38 | V4: =钻展!O3 -> 0.66 | W4: =钻展!P3 -> 1100 | X4: =钻展!Q3 -> 0.8987818182 | Y4: =IFERROR(钻展!T3,0) -> 1.416058099 | Z4: =直通车!B3 -> 2026.23 | AA4: =直通车!D3 -> 545 | AB4: =直通车!E3 -> 3.72 | AC4: =直通车!G3 -> 1488 | AD4: =直通车!H3 -> 1 | AE4: =直通车!I3 -> 11 | AF4: =直通车!J3 -> 14 | AG4: =直通车!K3 -> 0.0018 | AH4: 0.7343687538 | AI4: =淘客!B3 -> 13.47 | AJ4: =淘客!C3 -> 134.64 | AK4: =淘客!E3 -> 9.995545657 | AL4: 3028.36
A5: 周二 | B5: =店铺经营详情!$A$5 -> 2015-11-03 | C5: =店铺经营详情!B5 -> 2997 | D5: =店铺经营详情!N5 -> 22222 | E5: =店铺经营详情!O5 -> 1111 | F5: =店铺经营详情!C5 -> 1152 | G5: =店铺经营详情!E5 -> 0.1476 | H5: =店铺经营详情!F5 -> 0.8 | I5: =店铺经营详情!AK5 -> 96 | J5: =店铺经营详情!AP5 -> 1.6429 | K5: =店铺经营详情!AM5 -> 75515.7 | L5: =店铺经营详情!AS5 -> 1797.992857 | M5: =店铺经营详情!AU5 -> 5 | N5: =店铺经营详情!AV5 -> 0.5952 | O5: =店铺经营详情!AW5 -> 0.0391 | P5: 0.0401023893 | Q5: =钻展!D4 -> 152 | R5: =钻展!E4 -> 988.66 | S5: =钻展!F4 -> 0.0091 | T5: =钻展!G4 -> 6.5 | U5: =钻展!N4 -> 44 | V5: =钻展!O4 -> 0.43 | W5: =钻展!P4 -> 1200 | X5: =钻展!Q4 -> 0.8238833333 | Y5: =IFERROR(钻展!T4,0) -> 1.416058099 | Z5: =直通车!B4 -> 2026.23 | AA5: =直通车!D4 -> 545 | AB5: =直通车!E4 -> 3.72 | AC5: =直通车!G4 -> 1488 | AD5: =直通车!H4 -> 1 | AE5: =直通车!I4 -> 11 | AF5: =直通车!J4 -> 14 | AG5: =直通车!K4 -> 0.0018 | AH5: 0.7343687538 | AI5: =淘客!B4 -> 13.47 | AJ5: =淘客!C4 -> 134.64 | AK5: =淘客!E4 -> 9.995545657 | AL5: 3028.36
A6: 周三 | B6: =店铺经营详情!$A$6 -> 2015-11-04 | C6: =店铺经营详情!B6 -> 2997 | D6: =店铺经营详情!N6 -> 22222 | E6: =店铺经营详情!O6 -> 1111 | F6: =店铺经营详情!C6 -> 1152 | G6: =店铺经营详情!E6 -> 0.1476 | H6: =店铺经营详情!F6 -> 0.98 | I6: =店铺经营详情!AK6 -> 96 | J6: =店铺经营详情!AP6 -> 1.6429 | K6: =店铺经营详情!AM6 -> 75515.7 | L6: =店铺经营详情!AS6 -> 1797.992857 | M6: =店铺经营详情!AU6 -> 5 | N6: =店铺经营详情!AV6 -> 0.5952 | O6: =店铺经营详情!AW6 -> 0.0391 | P6: 0.0401023893 | Q6: =钻展!D5 -> 152 | R6: =钻展!E5 -> 988.66 | S6: =钻展!F5 -> 0.0091 | T6: =钻展!G5 -> 6.5 | U6: =钻展!N5 -> 50 | V6: =钻展!O5 -> 0.5066666667 | W6: =钻展!P5 -> 1300 | X6: =钻展!Q5 -> 0.7605076923 | Y6: =IFERROR(钻展!T5,0) -> 1.416058099 | Z6: =直通车!B5 -> 2026.23 | AA6: =直通车!D5 -> 545 | AB6: =直通车!E5 -> 3.72 | AC6: =直通车!G5 -> 1488 | AD6: =直通车!H5 -> 1 | AE6: =直通车!I5 -> 11 | AF6: =直通车!J5 -> 14 | AG6: =直通车!K5 -> 0.0018 | AH6: 0.7343687538 | AI6: =淘客!B5 -> 13.47 | AJ6: =淘客!C5 -> 134.64 | AK6: =淘客!E5 -> 9.995545657 | AL6: 3028.36
A7: 周四 | B7: =店铺经营详情!$A$7 -> 2015-11-05 | C7: =店铺经营详情!B7 -> 2997 | D7: =店铺经营详情!N7 -> 22222 | E7: =店铺经营详情!O7 -> 1111 | F7: =店铺经营详情!C7 -> 1152 | G7: =店铺经营详情!E7 -> 0.1476 | H7: =店铺经营详情!F7 -> 0.5980902778 | I7: =店铺经营详情!AK7 -> 96 | J7: =店铺经营详情!AP7 -> 1.6429 | K7: =店铺经营详情!AM7 -> 75515.7 | L7: =店铺经营详情!AQ7 -> 33 | M7: =店铺经营详情!AU7 -> 5 | N7: =店铺经营详情!AV7 -> 0.5952 | O7: =店铺经营详情!AW7 -> 0.0391 | P7: 0.0401023893 | Q7: =钻展!D6 -> 152 | R7: =钻展!E6 -> 988.66 | S7: =钻展!F6 -> 0.0091 | T7: =钻展!G6 -> 6.5 | U7: =钻展!N6 -> 56 | V7: =钻展!O6 -> 0.5066666667 | W7: =钻展!P6 -> 1400 | X7: =钻展!Q6 -> 0.7061857143 | Y7: =IFERROR(钻展!T6,0) -> 1.416058099 | Z7: =直通车!B6 -> 2026.23 | AA7: =直通车!D6 -> 545 | AB7: =直通车!E6 -> 3.72 | AC7: =直通车!G6 -> 1488 | AD7: =直通车!H6 -> 1 | AE7: =直通车!I6 -> 11 | AF7: =直通车!J6 -> 14 | AG7: =直通车!K6 -> 0.0018 | AH7: 0.7343687538 | AI7: =淘客!B6 -> 13.47 | AJ7: =淘客!C6 -> 134.64 | AK7: =淘客!E6 -> 9.995545657 | AL7: 3028.36
A8: 周五 | B8: =店铺经营详情!$A$8 -> 2015-11-06 | C8: =店铺经营详情!B8 -> 2997 | D8: =店铺经营详情!N8 -> 22222 | E8: =店铺经营详情!O8 -> 1111 | F8: =店铺经营详情!C8 -> 1152 | G8: =店铺经营详情!E8 -> 0.1476 | H8: =店铺经营详情!F8 -> 0.5980902778 | I8: =店铺经营详情!AK8 -> 96 | J8: =店铺经营详情!AP8 -> 1.6429 | K8: =店铺经营详情!AM8 -> 75515.7 | L8: =店铺经营详情!AS8 -> 1797.992857 | M8: =店铺经营详情!AU8 -> 5 | N8: =店铺经营详情!AV8 -> 0.5952 | O8: =店铺经营详情!AW8 -> 0.0391 | P8: 0.0401023893 | Q8: =钻展!D7 -> 152 | R8: =钻展!E7 -> 988.66 | S8: =钻展!F7 -> 0.0091 | T8: =钻展!G7 -> 6.5 | U8: =钻展!N7 -> 62 | V8: =钻展!O7 -> 0.5066666667 | W8: =钻展!P7 -> 1500 | X8: =钻展!Q7 -> 0.6591066667 | Y8: =IFERROR(钻展!T7,0) -> 1.416058099 | Z8: =直通车!B7 -> 2026.23 | AA8: =直通车!D7 -> 545 | AB8: =直通车!E7 -> 3.72 | AC8: =直通车!G7 -> 1488 | AD8: =直通车!H7 -> 1 | AE8: =直通车!I7 -> 11 | AF8: =直通车!J7 -> 14 | AG8: =直通车!K7 -> 0.0018 | AH8: 0.7343687538 | AI8: =淘客!B7 -> 13.47 | AJ8: =淘客!C7 -> 134.64 | AK8: =淘客!E7 -> 9.995545657 | AL8: 3028.36
A9: 周六 | B9: =店铺经营详情!$A$9 -> 2015-11-07 | C9: =店铺经营详情!B9 -> 2997 | D9: =店铺经营详情!N9 -> 22222 | E9: =店铺经营详情!O9 -> 1111 | F9: =店铺经营详情!C9 -> 1152 | G9: =店铺经营详情!E9 -> 0.1476 | H9: =店铺经营详情!F9 -> 0.5980902778 | I9: =店铺经营详情!AK9 -> 96 | J9: =店铺经营详情!AP9 -> 1.6429 | K9: =店铺经营详情!AM9 -> 75515.7 | L9: =店铺经营详情!AS9 -> 1797.992857 | M9: =店铺经营详情!AU9 -> 5 | N9: =店铺经营详情!AV9 -> 0.5952 | O9: =店铺经营详情!AW9 -> 0.0391 | P9: 0.0401023893 | Q9: =钻展!D8 -> 152 | R9: =钻展!E8 -> 988.66 | S9: =钻展!F8 -> 0.0091 | T9: =钻展!G8 -> 6.5 | U9: =钻展!N8 -> 68 | V9: =钻展!O8 -> 0.5066666667 | W9: =钻展!P8 -> 1600 | X9: =钻展!Q8 -> 0.6179125 | Y9: =IFERROR(钻展!T8,0) -> 1.416058099 | Z9: =直通车!B8 -> 2026.23 | AA9: =直通车!D8 -> 545 | AB9: =直通车!E8 -> 3.72 | AC9: =直通车!G8 -> 1488 | AD9: =直通车!H8 -> 1 | AE9: =直通车!I8 -> 11 | AF9: =直通车!J8 -> 14 | AG9: =直通车!K8 -> 0.0018 | AH9: 0.7343687538 | AI9: =淘客!B8 -> 13.47 | AJ9: =淘客!C8 -> 134.64 | AK9: =淘客!E8 -> 9.995545657 | AL9: 3028.36
A10: 周日 | B10: =店铺经营详情!$A$10 -> 2015-11-08 | C10: =店铺经营详情!B10 -> 2997 | D10: =店铺经营详情!N10 -> 22222 | E10: =店铺经营详情!O10 -> 1111 | F10: =店铺经营详情!C10 -> 1152 | G10: =店铺经营详情!E10 -> 0.1476 | H10: =店铺经营详情!F10 -> 0.5980902778 | I10: =店铺经营详情!AK10 -> 96 | J10: =店铺经营详情!AP10 -> 1.6429 | K10: =店铺经营详情!AM10 -> 75515.7 | L10: =店铺经营详情!AS10 -> 1797.992857 | M10: =店铺经营详情!AU10 -> 5 | N10: =店铺经营详情!AV10 -> 0.5952 | O10: =店铺经营详情!AW10 -> 0.0391 | P10: 0.0401023893 | Q10: =钻展!D9 -> 152 | R10: =钻展!E9 -> 988.66 | S10: =钻展!F9 -> 0.0091 | T10: =钻展!G9 -> 6.5 | U10: =钻展!N9 -> 74 | V10: =钻展!O9 -> 0.5066666667 | W10: =钻展!P9 -> 1700 | X10: =钻展!Q9 -> 0.5815647059 | Y10: =IFERROR(钻展!T9,0) -> 1.416058099 | Z10: =直通车!B9 -> 2026.23 | AA10: =直通车!D9 -> 545 | AB10: =直通车!E9 -> 3.72 | AC10: =直通车!G9 -> 1488 | AD10: =直通车!H9 -> 1 | AE10: =直通车!I9 -> 11 | AF10: =直通车!J9 -> 14 | AG10: =直通车!K9 -> 0.0018 | AH10: 0.7343687538 | AI10: =淘客!B9 -> 13.47 | AJ10: =淘客!C9 -> 134.64 | AK10: =淘客!E9 -> 9.995545657 | AL10: 3028.36
A11: 周一 | B11: =店铺经营详情!$A$11 -> 2015-11-09 | C11: =店铺经营详情!B11 -> 2997 | D11: =店铺经营详情!N11 -> 22222 | E11: =店铺经营详情!O11 -> 1111 | F11: =店铺经营详情!C11 -> 1152 | G11: =店铺经营详情!E11 -> 0.1476 | H11: =店铺经营详情!F11 -> 0.5980902778 | I11: =店铺经营详情!AK11 -> 96 | J11: =店铺经营详情!AP11 -> 1.6429 | K11: =店铺经营详情!AM11 -> 75515.7 | L11: =店铺经营详情!AS11 -> 1797.992857 | M11: =店铺经营详情!AU11 -> 5 | N11: =店铺经营详情!AV11 -> 0.5952 | O11: =店铺经营详情!AW11 -> 0.0391 | P11: 0.0401023893 | Q11: =钻展!D10 -> 152 | R11: =钻展!E10 -> 988.66 | S11: =钻展!F10 -> 0.0091 | T11: =钻展!G10 -> 6.5 | U11: =钻展!N10 -> 80 | V11: =钻展!O10 -> 0.5066666667 | W11: =钻展!P10 -> 1800 | X11: =钻展!Q10 -> 0.5492555556 | Y11: =IFERROR(钻展!T10,0) -> 1.416058099 | Z11: =直通车!B10 -> 2026.23 | AA11: =直通车!D10 -> 545 | AB11: =直通车!E10 -> 3.72 | AC11: =直通车!G10 -> 1488 | AD11: =直通车!H10 -> 1 | AE11: =直通车!I10 -> 11 | AF11: =直通车!J10 -> 14 | AG11: =直通车!K10 -> 0.0018 | AH11: 0.7343687538 | AI11: =淘客!B10 -> 13.47 | AJ11: =淘客!C10 -> 134.64 | AK11: =淘客!E10 -> 9.995545657 | AL11: 3028.36
A12: 周二 | B12: =店铺经营详情!$A$12 -> 2015-11-10 | C12: =店铺经营详情!B12 -> 2997 | D12: =店铺经营详情!N12 -> 22222 | E12: =店铺经营详情!O12 -> 1111 | F12: =店铺经营详情!C12 -> 1152 | G12: =店铺经营详情!E12 -> 0.1476 | H12: =店铺经营详情!F12 -> 0.5980902778 | I12: =店铺经营详情!AK12 -> 96 | J12: =店铺经营详情!AP12 -> 1.6429 | K12: =店铺经营详情!AM12 -> 75515.7 | L12: =店铺经营详情!AS12 -> 1797.992857 | M12: =店铺经营详情!AU12 -> 5 | N12: =店铺经营详情!AV12 -> 0.5952 | O12: =店铺经营详情!AW12 -> 0.0391 | P12: 0.0401023893 | Q12: =钻展!D11 -> 152 | R12: =钻展!E11 -> 988.66 | S12: =钻展!F11 -> 0.0091 | T12: =钻展!G11 -> 6.5 | U12: =钻展!N11 -> 86 | V12: =钻展!O11 -> 0.5066666667 | W12: =钻展!P11 -> 1900 | X12: =钻展!Q11 -> 0.5203473684 | Y12: =IFERROR(钻展!T11,0) -> 1.416058099 | Z12: =直通车!B11 -> 2026.23 | AA12: =直通车!D11 -> 545 | AB12: =直通车!E11 -> 3.72 | AC12: =直通车!G11 -> 1488 | AD12: =直通车!H11 -> 1 | AE12: =直通车!I11 -> 11 | AF12: =直通车!J11 -> 14 | AG12: =直通车!K11 -> 0.0018 | AH12: 0.7343687538 | AI12: =淘客!B11 -> 13.47 | AJ12: =淘客!C11 -> 134.64 | AK12: =淘客!E11 -> 9.995545657 | AL12: 3028.36
A13: 周三 | B13: =店铺经营详情!$A$13 -> 2015-11-11 | C13: =店铺经营详情!B13 -> 2997 | D13: =店铺经营详情!N13 -> 22222 | E13: =店铺经营详情!O13 -> 1111 | F13: =店铺经营详情!C13 -> 1152 | G13: =店铺经营详情!E13 -> 0.1476 | H13: =店铺经营详情!F13 -> 0.5980902778 | I13: =店铺经营详情!AK13 -> 96 | J13: =店铺经营详情!AP13 -> 1.6429 | K13: =店铺经营详情!AM13 -> 75515.7 | L13: =店铺经营详情!AS13 -> 1797.992857 | M13: =店铺经营详情!AU13 -> 5 | N13: =店铺经营详情!AV13 -> 0.5952 | O13: =店铺经营详情!AW13 -> 0.0391 | P13: 0.0401023893 | Q13: =钻展!D12 -> 152 | R13: =钻展!E12 -> 988.66 | S13: =钻展!F12 -> 0.0091 | T13: =钻展!G12 -> 6.5 | U13: =钻展!N12 -> 92 | V13: =钻展!O12 -> 0.5066666667 | W13: =钻展!P12 -> 2000 | X13: =钻展!Q12 -> 0.49433 | Y13: =IFERROR(钻展!T12,0) -> 1.416058099 | Z13: =直通车!B12 -> 2026.23 | AA13: =直通车!D12 -> 545 | AB13: =直通车!E12 -> 3.72 | AC13: =直通车!G12 -> 1488 | AD13: =直通车!H12 -> 1 | AE13: =直通车!I12 -> 11 | AF13: =直通车!J12 -> 14 | AG13: =直通车!K12 -> 0.0018 | AH13: 0.7343687538 | AI13: =淘客!B12 -> 13.47 | AJ13: =淘客!C12 -> 134.64 | AK13: =淘客!E12 -> 9.995545657 | AL13: 3028.36
A14: 周四 | B14: =店铺经营详情!$A$14 -> 2015-11-12 | C14: =店铺经营详情!B14 -> 2997 | D14: =店铺经营详情!N14 -> 22222 | E14: =店铺经营详情!O14 -> 1111 | F14: =店铺经营详情!C14 -> 1152 | G14: =店铺经营详情!E14 -> 0.1476 | H14: =店铺经营详情!F14 -> 0.5980902778 | I14: =店铺经营详情!AK14 -> 96 | J14: =店铺经营详情!AP14 -> 1.6429 | K14: =店铺经营详情!AM14 -> 75515.7 | L14: =店铺经营详情!AS14 -> 1797.992857 | M14: =店铺经营详情!AU14 -> 5 | N14: =店铺经营详情!AV14 -> 0.5952 | O14: =店铺经营详情!AW14 -> 0.0391 | P14: 0.0401023893 | Q14: =钻展!D13 -> 152 | R14: =钻展!E13 -> 988.66 | S14: =钻展!F13 -> 0.0091 | T14: =钻展!G13 -> 6.5 | U14: =钻展!N13 -> 98 | V14: =钻展!O13 -> 0.5066666667 | W14: =钻展!P13 -> 2100 | X14: =钻展!Q13 -> 0.4707904762 | Y14: =IFERROR(钻展!T13,0) -> 1.416058099 | Z14: =直通车!B13 -> 2026.23 | AA14: =直通车!D13 -> 545 | AB14: =直通车!E13 -> 3.72 | AC14: =直通车!G13 -> 1488 | AD14: =直通车!H13 -> 1 | AE14: =直通车!I13 -> 11 | AF14: =直通车!J13 -> 14 | AG14: =直通车!K13 -> 0.0018 | AH14: 0.7343687538 | AI14: =淘客!B13 -> 13.47 | AJ14: =淘客!C13 -> 134.64 | AK14: =淘客!E13 -> 9.995545657 | AL14: 3028.36
A15: 周五 | B15: =店铺经营详情!$A$15 -> 2015-11-13 | C15: =店铺经营详情!B15 -> 2997 | D15: =店铺经营详情!N15 -> 22222 | E15: =店铺经营详情!O15 -> 1111 | F15: =店铺经营详情!C15 -> 1152 | G15: =店铺经营详情!E15 -> 0.1476 | H15: =店铺经营详情!F15 -> 0.5980902778 | I15: =店铺经营详情!AK15 -> 88 | J15: =店铺经营详情!AP15 -> 1.6429 | K15: =店铺经营详情!AM15 -> 75515.7 | L15: =店铺经营详情!AS15 -> 1797.992857 | M15: =店铺经营详情!AU15 -> 5 | N15: =店铺经营详情!AV15 -> 0.5952 | O15: =店铺经营详情!AW15 -> 0.0391 | P15: 0.0401023893 | Q15: =钻展!D14 -> 152 | R15: =钻展!E14 -> 988.66 | S15: =钻展!F14 -> 0.0091 | T15: =钻展!G14 -> 6.5 | U15: =钻展!N14 -> 104 | V15: =钻展!O14 -> 0.5066666667 | W15: =钻展!P14 -> 2200 | X15: =钻展!Q14 -> 0.4493909091 | Y15: =IFERROR(钻展!T14,0) -> 1.416058099 | Z15: =直通车!B14 -> 2026.23 | AA15: =直通车!D14 -> 545 | AB15: =直通车!E14 -> 3.72 | AC15: =直通车!G14 -> 1488 | AD15: =直通车!H14 -> 1 | AE15: =直通车!I14 -> 11 | AF15: =直通车!J14 -> 14 | AG15: =直通车!K14 -> 0.0018 | AH15: 0.7343687538 | AI15: =淘客!B14 -> 13.47 | AJ15: =淘客!C14 -> 134.64 | AK15: =淘客!E14 -> 9.995545657 | AL15: 3028.36
A16: 周六 | B16: =店铺经营详情!$A$16 -> 2015-11-14 | C16: =店铺经营详情!B16 -> 2997 | D16: =店铺经营详情!N16 -> 22222 | E16: =店铺经营详情!O16 -> 1111 | F16: =店铺经营详情!C16 -> 1152 | G16: =店铺经营详情!E16 -> 0.1476 | H16: =店铺经营详情!F16 -> 0.5980902778 | I16: =店铺经营详情!AK16 -> 33 | J16: =店铺经营详情!AP16 -> 1.6429 | K16: =店铺经营详情!AM16 -> 75515.7 | L16: =店铺经营详情!AS16 -> 1797.992857 | M16: =店铺经营详情!AU16 -> 5 | N16: =店铺经营详情!AV16 -> 0.5952 | O16: =店铺经营详情!AW16 -> 0.0391 | P16: 0.0401023893 | Q16: =钻展!D15 -> 152 | R16: =钻展!E15 -> 988.66 | S16: =钻展!F15 -> 0.0091 | T16: =钻展!G15 -> 6.5 | U16: =钻展!N15 -> 110 | V16: =钻展!O15 -> 0.5066666667 | W16: =钻展!P15 -> 2300 | X16: =钻展!Q15 -> 0.4298521739 | Y16: =IFERROR(钻展!T15,0) -> 1.416058099 | Z16: =直通车!B15 -> 2026.23 | AA16: =直通车!D15 -> 545 | AB16: =直通车!E15 -> 3.72 | AC16: =直通车!G15 -> 1488 | AD16: =直通车!H15 -> 1 | AE16: =直通车!I15 -> 11 | AF16: =直通车!J15 -> 14 | AG16: =直通车!K15 -> 0.0018 | AH16: 0.7343687538 | AI16: =淘客!B15 -> 13.47 | AJ16: =淘客!C15 -> 134.64 | AK16: =淘客!E15 -> 9.995545657 | AL16: 3028.36
A17: 周日 | B17: =店铺经营详情!$A$17 -> 2015-11-15 | C17: =店铺经营详情!B17 -> 2997 | D17: =店铺经营详情!N17 -> 22222 | E17: =店铺经营详情!O17 -> 1111 | F17: =店铺经营详情!C17 -> 1152 | G17: =店铺经营详情!E17 -> 0.1476 | H17: =店铺经营详情!F17 -> 0.5980902778 | I17: =店铺经营详情!AK17 -> 22 | J17: =店铺经营详情!AP17 -> 1.6429 | K17: =店铺经营详情!AM17 -> 75515.7 | L17: =店铺经营详情!AS17 -> 1797.992857 | M17: =店铺经营详情!AU17 -> 5 | N17: =店铺经营详情!AV17 -> 0.5952 | O17: =店铺经营详情!AW17 -> 0.0391 | P17: 0.0401023893 | Q17: =钻展!D16 -> 152 | R17: =钻展!E16 -> 988.66 | S17: =钻展!F16 -> 0.0091 | T17: =钻展!G16 -> 6.5 | U17: =钻展!N16 -> 116 | V17: =钻展!O16 -> 0.5066666667 | W17: =钻展!P16 -> 2400 | X17: =钻展!Q16 -> 0.4119416667 | Y17: =IFERROR(钻展!T16,0) -> 1.416058099 | Z17: =直通车!B16 -> 2026.23 | AA17: =直通车!D16 -> 545 | AB17: =直通车!E16 -> 3.72 | AC17: =直通车!G16 -> 1488 | AD17: =直通车!H16 -> 1 | AE17: =直通车!I16 -> 11 | AF17: =直通车!J16 -> 14 | AG17: =直通车!K16 -> 0.0018 | AH17: 0.7343687538 | AI17: =淘客!B16 -> 13.47 | AJ17: =淘客!C16 -> 134.64 | AK17: =淘客!E16 -> 9.995545657 | AL17: 3028.36
A18: 周一 | B18: =店铺经营详情!$A$18 -> 2015-11-16 | C18: =店铺经营详情!B18 -> 2997 | D18: =店铺经营详情!N18 -> 22222 | E18: =店铺经营详情!O18 -> 1111 | F18: =店铺经营详情!C18 -> 1152 | G18: =店铺经营详情!E18 -> 0.1476 | H18: =店铺经营详情!F18 -> 0.5980902778 | I18: =店铺经营详情!AK18 -> 11 | J18: =店铺经营详情!AP18 -> 1.6429 | K18: =店铺经营详情!AM18 -> 75515.7 | L18: =店铺经营详情!AS18 -> 1797.992857 | M18: =店铺经营详情!AU18 -> 5 | N18: =店铺经营详情!AV18 -> 0.5952 | O18: =店铺经营详情!AW18 -> 0.0391 | P18: 0.0401023893 | Q18: =钻展!D17 -> 152 | R18: =钻展!E17 -> 988.66 | S18: =钻展!F17 -> 0.0091 | T18: =钻展!G17 -> 6.5 | U18: =钻展!N17 -> 122 | V18: =钻展!O17 -> 0.5066666667 | W18: =钻展!P17 -> 2500 | X18: =钻展!Q17 -> 0.395464 | Y18: =IFERROR(钻展!T17,0) -> 1.416058099 | Z18: =直通车!B17 -> 2026.23 | AA18: =直通车!D17 -> 545 | AB18: =直通车!E17 -> 3.72 | AC18: =直通车!G17 -> 1488 | AD18: =直通车!H17 -> 1 | AE18: =直通车!I17 -> 11 | AF18: =直通车!J17 -> 14 | AG18: =直通车!K17 -> 0.0018 | AH18: 0.7343687538 | AI18: =淘客!B17 -> 13.47 | AJ18: =淘客!C17 -> 134.64 | AK18: =淘客!E17 -> 9.995545657 | AL18: 3028.36
A19: 周二 | B19: =店铺经营详情!$A$19 -> 2015-11-17 | C19: =店铺经营详情!B19 -> 2997 | D19: =店铺经营详情!N19 -> 22222 | E19: =店铺经营详情!O19 -> 1111 | F19: =店铺经营详情!C19 -> 1152 | G19: =店铺经营详情!E19 -> 0.1476 | H19: =店铺经营详情!F19 -> 0.5980902778 | I19: =店铺经营详情!AK19 -> 96 | J19: =店铺经营详情!AP19 -> 1.6429 | K19: =店铺经营详情!AM19 -> 75515.7 | L19: =店铺经营详情!AS19 -> 1797.992857 | M19: =店铺经营详情!AU19 -> 5 | N19: =店铺经营详情!AV19 -> 0.5952 | O19: =店铺经营详情!AW19 -> 0.0391 | P19: 0.0401023893 | Q19: =钻展!D18 -> 152 | R19: =钻展!E18 -> 988.66 | S19: =钻展!F18 -> 0.0091 | T19: =钻展!G18 -> 6.5 | U19: =钻展!N18 -> 128 | V19: =钻展!O18 -> 0.5066666667 | W19: =钻展!P18 -> 2600 | X19: =钻展!Q18 -> 0.3802538462 | Y19: =IFERROR(钻展!T18,0) -> 1.416058099 | Z19: =直通车!B18 -> 2026.23 | AA19: =直通车!D18 -> 545 | AB19: =直通车!E18 -> 3.72 | AC19: =直通车!G18 -> 1488 | AD19: =直通车!H18 -> 1 | AE19: =直通车!I18 -> 11 | AF19: =直通车!J18 -> 14 | AG19: =直通车!K18 -> 0.0018 | AH19: 0.7343687538 | AI19: =淘客!B18 -> 13.47 | AJ19: =淘客!C18 -> 134.64 | AK19: =淘客!E18 -> 9.995545657 | AL19: 3028.36
A20: 周三 | B20: =店铺经营详情!$A$20 -> 2015-11-18 | C20: =店铺经营详情!B20 -> 2997 | D20: =店铺经营详情!N20 -> 22222 | E20: =店铺经营详情!O20 -> 1111 | F20: =店铺经营详情!C20 -> 1152 | G20: =店铺经营详情!E20 -> 0.1476 | H20: =店铺经营详情!F20 -> 0.5980902778 | I20: =店铺经营详情!AK20 -> 96 | J20: =店铺经营详情!AP20 -> 1.6429 | K20: =店铺经营详情!AM20 -> 75515.7 | L20: =店铺经营详情!AS20 -> 1797.992857 | M20: =店铺经营详情!AU20 -> 5 | N20: =店铺经营详情!AV20 -> 0.5952 | O20: =店铺经营详情!AW20 -> 0.0391 | P20: 0.0401023893 | Q20: =钻展!D19 -> 152 | R20: =钻展!E19 -> 988.66 | S20: =钻展!F19 -> 0.0091 | T20: =钻展!G19 -> 6.5 | U20: =钻展!N19 -> 134 | V20: =钻展!O19 -> 0.5066666667 | W20: =钻展!P19 -> 2700 | X20: =钻展!Q19 -> 0.3661703704 | Y20: =IFERROR(钻展!T19,0) -> 1.416058099 | Z20: =直通车!B19 -> 2026.23 | AA20: =直通车!D19 -> 545 | AB20: =直通车!E19 -> 3.72 | AC20: =直通车!G19 -> 1488 | AD20: =直通车!H19 -> 1 | AE20: =直通车!I19 -> 11 | AF20: =直通车!J19 -> 14 | AG20: =直通车!K19 -> 0.0018 | AH20: 0.7343687538 | AI20: =淘客!B19 -> 13.47 | AJ20: =淘客!C19 -> 134.64 | AK20: =淘客!E19 -> 9.995545657 | AL20: 3028.36
A21: 周四 | B21: =店铺经营详情!$A$21 -> 2015-11-19 | C21: =店铺经营详情!B21 -> 2997 | D21: =店铺经营详情!N21 -> 22222 | E21: =店铺经营详情!O21 -> 1111 | F21: =店铺经营详情!C21 -> 1152 | G21: =店铺经营详情!E21 -> 0.1476 | H21: =店铺经营详情!F21 -> 0.5980902778 | I21: =店铺经营详情!AK21 -> 96 | J21: =店铺经营详情!AP21 -> 1.6429 | K21: =店铺经营详情!AM21 -> 75515.7 | L21: =店铺经营详情!AS21 -> 1797.992857 | M21: =店铺经营详情!AU21 -> 5 | N21: =店铺经营详情!AV21 -> 0.5952 | O21: =店铺经营详情!AW21 -> 0.0391 | P21: 0.0401023893 | Q21: =钻展!D20 -> 152 | R21: =钻展!E20 -> 988.66 | S21: =钻展!F20 -> 0.0091 | T21: =钻展!G20 -> 6.5 | U21: =钻展!N20 -> 140 | V21: =钻展!O20 -> 0.5066666667 | W21: =钻展!P20 -> 2800 | X21: =钻展!Q20 -> 0.3530928571 | Y21: =IFERROR(钻展!T20,0) -> 1.416058099 | Z21: =直通车!B20 -> 2026.23 | AA21: =直通车!D20 -> 545 | AB21: =直通车!E20 -> 3.72 | AC21: =直通车!G20 -> 1488 | AD21: =直通车!H20 -> 1 | AE21: =直通车!I20 -> 11 | AF21: =直通车!J20 -> 14 | AG21: =直通车!K20 -> 0.0018 | AH21: 0.7343687538 | AI21: =淘客!B20 -> 13.47 | AJ21: =淘客!C20 -> 134.64 | AK21: =淘客!E20 -> 9.995545657 | AL21: 3028.36
A22: 周五 | B22: =店铺经营详情!$A$22 -> 2015-11-20 | C22: =店铺经营详情!B22 -> 2997 | D22: =店铺经营详情!N22 -> 22222 | E22: =店铺经营详情!O22 -> 1111 | F22: =店铺经营详情!C22 -> 1152 | G22: =店铺经营详情!E22 -> 0.1476 | H22: =店铺经营详情!F22 -> 0.5980902778 | I22: =店铺经营详情!AK22 -> 96 | J22: =店铺经营详情!AP22 -> 1.6429 | K22: =店铺经营详情!AM22 -> 75515.7 | L22: =店铺经营详情!AS22 -> 1797.992857 | M22: =店铺经营详情!AU22 -> 5 | N22: =店铺经营详情!AV22 -> 0.5952 | O22: =店铺经营详情!AW22 -> 0.0391 | P22: 0.0401023893 | Q22: =钻展!D21 -> 152 | R22: =钻展!E21 -> 988.66 | S22: =钻展!F21 -> 0.0091 | T22: =钻展!G21 -> 6.5 | U22: =钻展!N21 -> 146 | V22: =钻展!O21 -> 0.5066666667 | W22: =钻展!P21 -> 2900 | X22: =钻展!Q21 -> 0.3409172414 | Y22: =IFERROR(钻展!T21,0) -> 1.416058099 | Z22: =直通车!B21 -> 2026.23 | AA22: =直通车!D21 -> 545 | AB22: =直通车!E21 -> 3.72 | AC22: =直通车!G21 -> 1488 | AD22: =直通车!H21 -> 1 | AE22: =直通车!I21 -> 11 | AF22: =直通车!J21 -> 14 | AG22: =直通车!K21 -> 0.0018 | AH22: 0.7343687538 | AI22: =淘客!B21 -> 13.47 | AJ22: =淘客!C21 -> 134.64 | AK22: =淘客!E21 -> 9.995545657 | AL22: 3028.36
A23: 周六 | B23: =店铺经营详情!$A$23 -> 2015-11-21 | C23: =店铺经营详情!B23 -> 2997 | D23: =店铺经营详情!N23 -> 22222 | E23: =店铺经营详情!O23 -> 1111 | F23: =店铺经营详情!C23 -> 1152 | G23: =店铺经营详情!E23 -> 0.1476 | H23: =店铺经营详情!F23 -> 0.5980902778 | I23: =店铺经营详情!AK23 -> 96 | J23: =店铺经营详情!AP23 -> 1.6429 | K23: =店铺经营详情!AM23 -> 75515.7 | L23: =店铺经营详情!AS23 -> 1797.992857 | M23: =店铺经营详情!AU23 -> 5 | N23: =店铺经营详情!AV23 -> 0.5952 | O23: =店铺经营详情!AW23 -> 0.0391 | P23: 0.0401023893 | Q23: =钻展!D22 -> 152 | R23: =钻展!E22 -> 988.66 | S23: =钻展!F22 -> 0.0091 | T23: =钻展!G22 -> 6.5 | U23: =钻展!N22 -> 152 | V23: =钻展!O22 -> 0.5066666667 | W23: =钻展!P22 -> 3000 | X23: =钻展!Q22 -> 0.3295533333 | Y23: =IFERROR(钻展!T22,0) -> 1.416058099 | Z23: =直通车!B22 -> 2026.23 | AA23: =直通车!D22 -> 545 | AB23: =直通车!E22 -> 3.72 | AC23: =直通车!G22 -> 1488 | AD23: =直通车!H22 -> 1 | AE23: =直通车!I22 -> 11 | AF23: =直通车!J22 -> 14 | AG23: =直通车!K22 -> 0.0018 | AH23: 0.7343687538 | AI23: =淘客!B22 -> 13.47 | AJ23: =淘客!C22 -> 134.64 | AK23: =淘客!E22 -> 9.995545657 | AL23: 3028.36
A24: 周日 | B24: =店铺经营详情!$A$24 -> 2015-11-22 | C24: =店铺经营详情!B24 -> 2997 | D24: =店铺经营详情!N24 -> 22222 | E24: =店铺经营详情!O24 -> 1111 | F24: =店铺经营详情!C24 -> 1152 | G24: =店铺经营详情!E24 -> 0.1476 | H24: =店铺经营详情!F24 -> 0.5980902778 | I24: =店铺经营详情!AK24 -> 96 | J24: =店铺经营详情!AP24 -> 1.6429 | K24: =店铺经营详情!AM24 -> 75515.7 | L24: =店铺经营详情!AS24 -> 1797.992857 | M24: =店铺经营详情!AU24 -> 5 | N24: =店铺经营详情!AV24 -> 0.5952 | O24: =店铺经营详情!AW24 -> 0.0391 | P24: 0.0401023893 | Q24: =钻展!D23 -> 152 | R24: =钻展!E23 -> 988.66 | S24: =钻展!F23 -> 0.0091 | T24: =钻展!G23 -> 6.5 | U24: =钻展!N23 -> 158 | V24: =钻展!O23 -> 0.5066666667 | W24: =钻展!P23 -> 3100 | X24: =钻展!Q23 -> 0.3189225806 | Y24: =IFERROR(钻展!T23,0) -> 1.416058099 | Z24: =直通车!B23 -> 2026.23 | AA24: =直通车!D23 -> 545 | AB24: =直通车!E23 -> 3.72 | AC24: =直通车!G23 -> 1488 | AD24: =直通车!H23 -> 1 | AE24: =直通车!I23 -> 11 | AF24: =直通车!J23 -> 14 | AG24: =直通车!K23 -> 0.0018 | AH24: 0.7343687538 | AI24: =淘客!B23 -> 13.47 | AJ24: =淘客!C23 -> 134.64 | AK24: =淘客!E23 -> 9.995545657 | AL24: 3028.36
A25: 周一 | B25: =店铺经营详情!$A$25 -> 2015-11-23 | C25: =店铺经营详情!B25 -> 2997 | D25: =店铺经营详情!N25 -> 22222 | E25: =店铺经营详情!O25 -> 1111 | F25: =店铺经营详情!C25 -> 1152 | G25: =店铺经营详情!E25 -> 0.1476 | H25: =店铺经营详情!F25 -> 0.5980902778 | I25: =店铺经营详情!AK25 -> 96 | J25: =店铺经营详情!AP25 -> 1.6429 | K25: =店铺经营详情!AM25 -> 75515.7 | L25: =店铺经营详情!AS25 -> 1797.992857 | M25: =店铺经营详情!AU25 -> 5 | N25: =店铺经营详情!AV25 -> 0.5952 | O25: =店铺经营详情!AW25 -> 0.0391 | P25: 0.0401023893 | Q25: =钻展!D24 -> 152 | R25: =钻展!E24 -> 988.66 | S25: =钻展!F24 -> 0.0091 | T25: =钻展!G24 -> 6.5 | U25: =钻展!N24 -> 164 | V25: =钻展!O24 -> 0.5066666667 | W25: =钻展!P24 -> 3200 | X25: =钻展!Q24 -> 0.30895625 | Y25: =IFERROR(钻展!T24,0) -> 1.416058099 | Z25: =直通车!B24 -> 2026.23 | AA25: =直通车!D24 -> 545 | AB25: =直通车!E24 -> 3.72 | AC25: =直通车!G24 -> 1488 | AD25: =直通车!H24 -> 1 | AE25: =直通车!I24 -> 11 | AF25: =直通车!J24 -> 14 | AG25: =直通车!K24 -> 0.0018 | AH25: 0.7343687538 | AI25: =淘客!B24 -> 13.47 | AJ25: =淘客!C24 -> 134.64 | AK25: =淘客!E24 -> 9.995545657 | AL25: 3028.36
A26: 周二 | B26: =店铺经营详情!$A$26 -> 2015-11-24 | C26: =店铺经营详情!B26 -> 2997 | D26: =店铺经营详情!N26 -> 22222 | E26: =店铺经营详情!O26 -> 1111 | F26: =店铺经营详情!C26 -> 1152 | G26: =店铺经营详情!E26 -> 0.1476 | H26: =店铺经营详情!F26 -> 0.5980902778 | I26: =店铺经营详情!AK26 -> 96 | J26: =店铺经营详情!AP26 -> 1.6429 | K26: =店铺经营详情!AM26 -> 75515.7 | L26: =店铺经营详情!AS26 -> 1797.992857 | M26: =店铺经营详情!AU26 -> 5 | N26: =店铺经营详情!AV26 -> 0.5952 | O26: =店铺经营详情!AW26 -> 0.0391 | P26: 0.0401023893 | Q26: =钻展!D25 -> 152 | R26: =钻展!E25 -> 988.66 | S26: =钻展!F25 -> 0.0091 | T26: =钻展!G25 -> 6.5 | U26: =钻展!N25 -> 170 | V26: =钻展!O25 -> 0.5066666667 | W26: =钻展!P25 -> 3300 | X26: =钻展!Q25 -> 0.2995939394 | Y26: =IFERROR(钻展!T25,0) -> 1.416058099 | Z26: =直通车!B25 -> 2026.23 | AA26: =直通车!D25 -> 545 | AB26: =直通车!E25 -> 3.72 | AC26: =直通车!G25 -> 1488 | AD26: =直通车!H25 -> 1 | AE26: =直通车!I25 -> 11 | AF26: =直通车!J25 -> 14 | AG26: =直通车!K25 -> 0.0018 | AH26: 0.7343687538 | AI26: =淘客!B25 -> 13.47 | AJ26: =淘客!C25 -> 134.64 | AK26: =淘客!E25 -> 9.995545657 | AL26: 3028.36
A27: 周三 | B27: =店铺经营详情!$A$27 -> 2015-11-25 | C27: =店铺经营详情!B27 -> 2997 | D27: =店铺经营详情!N27 -> 22222 | E27: =店铺经营详情!O27 -> 1111 | F27: =店铺经营详情!C27 -> 1152 | G27: =店铺经营详情!E27 -> 0.1476 | H27: =店铺经营详情!F27 -> 0.5980902778 | I27: =店铺经营详情!AK27 -> 96 | J27: =店铺经营详情!AP27 -> 1.6429 | K27: =店铺经营详情!AM27 -> 75515.7 | L27: =店铺经营详情!AS27 -> 1797.992857 | M27: =店铺经营详情!AU27 -> 5 | N27: =店铺经营详情!AV27 -> 0.5952 | O27: =店铺经营详情!AW27 -> 0.0391 | P27: 0.0401023893 | Q27: =钻展!D26 -> 152 | R27: =钻展!E26 -> 988.66 | S27: =钻展!F26 -> 0.0091 | T27: =钻展!G26 -> 6.5 | U27: =钻展!N26 -> 176 | V27: =钻展!O26 -> 0.5066666667 | W27: =钻展!P26 -> 3400 | X27: =钻展!Q26 -> 0.2907823529 | Y27: =IFERROR(钻展!T26,0) -> 1.416058099 | Z27: =直通车!B26 -> 2026.23 | AA27: =直通车!D26 -> 545 | AB27: =直通车!E26 -> 3.72 | AC27: =直通车!G26 -> 1488 | AD27: =直通车!H26 -> 1 | AE27: =直通车!I26 -> 11 | AF27: =直通车!J26 -> 14 | AG27: =直通车!K26 -> 0.0018 | AH27: 0.7343687538 | AI27: =淘客!B26 -> 13.47 | AJ27: =淘客!C26 -> 134.64 | AK27: =淘客!E26 -> 9.995545657 | AL27: 3028.36
A28: 周四 | B28: =店铺经营详情!$A$28 -> 2015-11-26 | C28: =店铺经营详情!B28 -> 2997 | D28: =店铺经营详情!N28 -> 22222 | E28: =店铺经营详情!O28 -> 1111 | F28: =店铺经营详情!C28 -> 1152 | G28: =店铺经营详情!E28 -> 0.1476 | H28: =店铺经营详情!F28 -> 0.5980902778 | I28: =店铺经营详情!AK28 -> 96 | J28: =店铺经营详情!AP28 -> 1.6429 | K28: =店铺经营详情!AM28 -> 75515.7 | L28: =店铺经营详情!AS28 -> 1797.992857 | M28: =店铺经营详情!AU28 -> 5 | N28: =店铺经营详情!AV28 -> 0.5952 | O28: =店铺经营详情!AW28 -> 0.0391 | P28: 0.0401023893 | Q28: =钻展!D27 -> 152 | R28: =钻展!E27 -> 988.66 | S28: =钻展!F27 -> 0.0091 | T28: =钻展!G27 -> 6.5 | U28: =钻展!N27 -> 182 | V28: =钻展!O27 -> 0.5066666667 | W28: =钻展!P27 -> 3500 | X28: =钻展!Q27 -> 0.2824742857 | Y28: =IFERROR(钻展!T27,0) -> 1.416058099 | Z28: =直通车!B27 -> 2026.23 | AA28: =直通车!D27 -> 545 | AB28: =直通车!E27 -> 3.72 | AC28: =直通车!G27 -> 1488 | AD28: =直通车!H27 -> 1 | AE28: =直通车!I27 -> 11 | AF28: =直通车!J27 -> 14 | AG28: =直通车!K27 -> 0.0018 | AH28: 0.7343687538 | AI28: =淘客!B27 -> 13.47 | AJ28: =淘客!C27 -> 134.64 | AK28: =淘客!E27 -> 9.995545657 | AL28: 3028.36
A29: 周五 | B29: =店铺经营详情!$A$29 -> 2015-11-27 | C29: =店铺经营详情!B29 -> 2997 | D29: =店铺经营详情!N29 -> 22222 | E29: =店铺经营详情!O29 -> 1111 | F29: =店铺经营详情!C29 -> 1152 | G29: =店铺经营详情!E29 -> 0.1476 | H29: =店铺经营详情!F29 -> 0.5980902778 | I29: =店铺经营详情!AK29 -> 96 | J29: =店铺经营详情!AP29 -> 1.6429 | K29: =店铺经营详情!AM29 -> 75515.7 | L29: =店铺经营详情!AS29 -> 1797.992857 | M29: =店铺经营详情!AU29 -> 5 | N29: =店铺经营详情!AV29 -> 0.5952 | O29: =店铺经营详情!AW29 -> 0.0391 | P29: 0.0401023893 | Q29: =钻展!D28 -> 152 | R29: =钻展!E28 -> 988.66 | S29: =钻展!F28 -> 0.0091 | T29: =钻展!G28 -> 6.5 | U29: =钻展!N28 -> 188 | V29: =钻展!O28 -> 0.5066666667 | W29: =钻展!P28 -> 3600 | X29: =钻展!Q28 -> 0.2746277778 | Y29: =IFERROR(钻展!T28,0) -> 1.416058099 | Z29: =直通车!B28 -> 2026.23 | AA29: =直通车!D28 -> 545 | AB29: =直通车!E28 -> 3.72 | AC29: =直通车!G28 -> 1488 | AD29: =直通车!H28 -> 1 | AE29: =直通车!I28 -> 11 | AF29: =直通车!J28 -> 14 | AG29: =直通车!K28 -> 0.0018 | AH29: 0.7343687538 | AI29: =淘客!B28 -> 13.47 | AJ29: =淘客!C28 -> 134.64 | AK29: =淘客!E28 -> 9.995545657 | AL29: 3028.36
A30: 周六 | B30: =店铺经营详情!$A$30 -> 2015-11-28 | C30: =店铺经营详情!B30 -> 2997 | D30: =店铺经营详情!N30 -> 22222 | E30: =店铺经营详情!O30 -> 1111 | F30: =店铺经营详情!C30 -> 1152 | G30: =店铺经营详情!E30 -> 0.1476 | H30: =店铺经营详情!F30 -> 0.5980902778 | I30: =店铺经营详情!AK30 -> 96 | J30: =店铺经营详情!AP30 -> 1.6429 | K30: =店铺经营详情!AM30 -> 75515.7 | L30: =店铺经营详情!AS30 -> 1797.992857 | M30: =店铺经营详情!AU30 -> 5 | N30: =店铺经营详情!AV30 -> 0.5952 | O30: =店铺经营详情!AW30 -> 0.0391 | P30: 0.0401023893 | Q30: =钻展!D29 -> 152 | R30: =钻展!E29 -> 988.66 | S30: =钻展!F29 -> 0.0091 | T30: =钻展!G29 -> 6.5 | U30: =钻展!N29 -> 194 | V30: =钻展!O29 -> 0.5066666667 | W30: =钻展!P29 -> 3700 | X30: =钻展!Q29 -> 0.2672054054 | Y30: =IFERROR(钻展!T29,0) -> 1.416058099 | Z30: =直通车!B29 -> 2026.23 | AA30: =直通车!D29 -> 545 | AB30: =直通车!E29 -> 3.72 | AC30: =直通车!G29 -> 1488 | AD30: =直通车!H29 -> 1 | AE30: =直通车!I29 -> 11 | AF30: =直通车!J29 -> 14 | AG30: =直通车!K29 -> 0.0018 | AH30: 0.7343687538 | AI30: =淘客!B29 -> 13.47 | AJ30: =淘客!C29 -> 134.64 | AK30: =淘客!E29 -> 9.995545657 | AL30: 3028.36
A31: 周日 | B31: =店铺经营详情!$A$31 -> 2015-11-29 | C31: =店铺经营详情!B31 -> 2997 | D31: =店铺经营详情!N31 -> 22222 | E31: =店铺经营详情!O31 -> 1111 | F31: =店铺经营详情!C31 -> 1152 | G31: =店铺经营详情!E31 -> 0.1476 | H31: =店铺经营详情!F31 -> 0.5980902778 | I31: =店铺经营详情!AK31 -> 96 | J31: =店铺经营详情!AP31 -> 1.6429 | K31: =店铺经营详情!AM31 -> 75515.7 | L31: =店铺经营详情!AS31 -> 1797.992857 | M31: =店铺经营详情!AU31 -> 5 | N31: =店铺经营详情!AV31 -> 0.5952 | O31: =店铺经营详情!AW31 -> 0.0391 | P31: 0.0401023893 | Q31: =钻展!D30 -> 152 | R31: =钻展!E30 -> 988.66 | S31: =钻展!F30 -> 0.0091 | T31: =钻展!G30 -> 6.5 | U31: =钻展!N30 -> 200 | V31: =钻展!O30 -> 0.5066666667 | W31: =钻展!P30 -> 3800 | X31: =钻展!Q30 -> 0.2601736842 | Y31: =IFERROR(钻展!T30,0) -> 0.1517205106 | Z31: =直通车!B30 -> 2026.23 | AA31: =直通车!D30 -> 545 | AB31: =直通车!E30 -> 3.72 | AC31: =直通车!G30 -> 1488 | AD31: =直通车!H30 -> 1 | AE31: =直通车!I30 -> 11 | AF31: =直通车!J30 -> 14 | AG31: =直通车!K30 -> 0.0018 | AH31: 0.7343687538 | AI31: =淘客!B30 -> 13.47 | AJ31: =淘客!C30 -> 134.64 | AK31: =淘客!E30 -> 9.995545657 | AL31: 3028.36
A32: 周一 | B32: =店铺经营详情!$A$32 -> 2015-11-30 | C32: =店铺经营详情!B32 -> 2997 | D32: =店铺经营详情!N32 -> 22222 | E32: =店铺经营详情!O32 -> 1111 | F32: =店铺经营详情!C32 -> 1152 | G32: =店铺经营详情!E32 -> 0.1476 | H32: =店铺经营详情!F32 -> 0.5980902778 | I32: =店铺经营详情!AK32 -> 96 | J32: =店铺经营详情!AP32 -> 1.6429 | K32: =店铺经营详情!AM32 -> 75515.7 | L32: =店铺经营详情!AS32 -> 1797.992857 | M32: =店铺经营详情!AU32 -> 5 | N32: =店铺经营详情!AV32 -> 0.5952 | O32: =店铺经营详情!AW32 -> 0.0391 | P32: 0.0401023893 | Q32: =钻展!D31 -> 152 | R32: =钻展!E31 -> 988.66 | S32: =钻展!F31 -> 0.0091 | T32: =钻展!G31 -> 6.5 | U32: =钻展!N31 -> 206 | V32: =钻展!O31 -> 0.5066666667 | W32: =钻展!P31 -> 3900 | X32: =钻展!Q31 -> 0.2535025641 | Y32: =IFERROR(钻展!T31,0) -> 1.416058099 | Z32: =直通车!B31 -> 2026.23 | AA32: =直通车!D31 -> 545 | AB32: =直通车!E31 -> 3.72 | AC32: =直通车!G31 -> 1488 | AD32: =直通车!H31 -> 1 | AE32: =直通车!I31 -> 11 | AF32: =直通车!J31 -> 14 | AG32: =直通车!K31 -> 0.0018 | AH32: 0.7343687538 | AI32: =淘客!B31 -> 13.47 | AJ32: =淘客!C31 -> 134.64 | AK32: =淘客!E31 -> 9.995545657 | AL32: 3028.36
A33: 周六 | B33: =店铺经营详情!$A$33 -> 00:00:00 | C33: =店铺经营详情!B33 -> 0 | D33: =店铺经营详情!N33 -> 0 | E33: =店铺经营详情!O33 -> 0 | F33: =店铺经营详情!C33 -> 0 | G33: =店铺经营详情!E33 -> 0 | H33: =店铺经营详情!F33 -> 0 | I33: =店铺经营详情!AK33 -> 0 | J33: =店铺经营详情!AP33 -> 0 | K33: =店铺经营详情!AM33 -> 0 | L33: =店铺经营详情!AS33 -> 0 | M33: =店铺经营详情!AU33 -> 0 | N33: =店铺经营详情!AV33 -> 0 | O33: =店铺经营详情!AW33 -> 0 | P33: 0 | Q33: =钻展!D32 -> 0 | R33: =钻展!E32 -> 0 | S33: =钻展!F32 -> 0 | T33: =钻展!G32 -> 0 | U33: =钻展!N32 -> 0 | V33: =钻展!O32 -> 0 | W33: =钻展!P32 -> 0 | X33: =钻展!Q32 -> 0 | Y33: =IFERROR(钻展!T32,0) -> 0 | Z33: =直通车!B32 -> 0 | AA33: =直通车!D32 -> 0 | AB33: =直通车!E32 -> 0 | AC33: =直通车!G32 -> 0 | AD33: =直通车!H32 -> 0 | AE33: =直通车!I32 -> 0 | AF33: =直通车!J32 -> 0 | AG33: =直通车!K32 -> 0 | AH33: 0 | AI33: =淘客!B32 -> 0 | AJ33: =淘客!C32 -> 0 | AK33: =淘客!E32 -> 0 | AL33: 0
B34: 汇总 | C34: =SUM(C3:C33) -> 89910 | D34: =SUM(D3:D33) -> 666660 | E34: =SUM(E3:E33) -> 33330 | F34: =SUM(F3:F33) -> 34560 | I34: =SUM(I3:I33) -> 2650 | K34: =SUM(K3:K33) -> 2265471 | M34: =SUM(M3:M33) -> 150 | P34: 0.0401023893 | Q34: =SUM(Q3:Q33) -> 4560 | R34: =SUM(R3:R33) -> 29659.8 | W34: =SUM(W3:W33) -> 73500 | Z34: =SUM(Z3:Z33) -> 60786.9 | AA34: =SUM(AA3:AA33) -> 16350 | AC34: =SUM(AC3:AC33) -> 44640 | AD34: =SUM(AD3:AD33) -> 30 | AE34: =SUM(AE3:AE33) -> 330 | AI34: =SUM(AI3:AI33) -> 404.1 | AJ34: =SUM(AJ3:AJ33) -> 4039.2 | AL34: =SUM(AL3:AL33) -> 90850.8
B35: 平均值 | C35: =店铺经营详情!B34 -> 2997 | D35: =AVERAGE(D3:D32) -> 22222 | E35: =AVERAGE(E3:E32) -> 1111 | F35: =店铺经营详情!C34 -> 1152 | H35: =店铺经营详情!F34 -> 0.6303449074 | I35: =店铺经营详情!AI34 -> 45 | J35: =店铺经营详情!AP34 -> 1.6429 | K35: =AVERAGE(K3:K32) -> 75515.7 | L35: =店铺经营详情!AS34 -> 1797.992857 | M35: =店铺经营详情!AU34 -> 5 | N35: =店铺经营详情!AV34 -> 0.5952 | O35: =店铺经营详情!AW34 -> 0.0391 | P35: 0.0401023893 | Q35: =钻展!#REF! ->  | R35: =钻展!E33 -> 988.66 | S35: =钻展!F33 -> 0.0091 | T35: =钻展!G33 -> 6.5 | W35: =钻展!P33 -> 2450 | X35: =钻展!Q33 -> 0.4543290667 | Y35: =钻展!T33 -> 1.373913513 | Z35: =直通车!B33 -> 2026.23 | AA35: =直通车!D33 -> 545 | AB35: =直通车!E33 -> 3.72 | AC35: =直通车!G33 -> 1488 | AD35: =直通车!H33 -> 1 | AE35: =直通车!I33 -> 11 | AG35: =直通车!K33 -> 0.0018 | AH35: =直通车!L33 -> 0.7106794392 | AI35: =淘客!B33 -> 13.47 | AJ35: =淘客!C33 -> 134.64 | AK35: =淘客!E33 -> 9.995545657 | AL35: =IFERROR(R35+Z35+AI35,0) -> 3028.36
B36: 注意事项 | C36: 1.表格第一个工作表是锁死的，后面的表格可以删除数据不可以删除和添加行和列！否则影响总表数据显示！ 2.如果有的数据指标自己家店铺没有数据，需要清零。 3.红色的标注是有公式项，请勿删除和覆盖； 4.表格内容比较多，建议团队协作完成。 5.表格名称请修改成自己的店铺名称；

Sheet 店铺经营详情
A1: 时间 | B1: 全部终端 | P1: PC端 | W1: 无线端 | AI1: 销售数据 | AY1: 其他 | BC1: 推广数据
B2: 浏览量 | C2: 访客数 | D2: 访客数较前一天变化量 | E2: 老访客数占比 | F2: 跳失率 | G2: 访问深度 | H2: 停留时长 | I2: 被浏览商品数 | J2: 商品详情页访客数 | K2: DSR服务 | L2: DSR描述 | M2: DSR物流 | N2: 天猫搜索 | O2: 淘宝搜索 | P2: 店铺首页平均停留时长(秒) | Q2: 客单价 | R2: 老访客数 | S2: 天猫搜索 | T2: 淘宝搜索 | U2: 跳失率 | V2: 支付转化率 | W2: 无线端跳失率 | X2: 无线下单金额 | Y2: 无线下单买家 | Z2: 无线端下单转化率 | AA2: 无线端支付金额占比 | AB2: 无线端支付买家数占比 | AC2: 无线端访客数占比 | AD2: 无线端客单价 | AE2: 无线端老访客数 | AF2: 天猫搜索 | AG2: 淘宝搜索 | AH2: 无线端人均停留时长(秒) | AI2: 下单买家数 | AJ2: 下单金额 | AK2: 下单商品件数 | AL2: 新买家数 | AM2: 支付金额 | AN2: 支付金额较前一天变化量 | AO2: 支付买家数 | AP2: 人均支付商品件数 | AQ2: 申请退款金额 | AR2: 申请退款买家数 | AS2: 客单价 | AT2: 商品收藏次数 | AU2: 店铺收藏次数 | AV2: 老买家数占比 | AW2: 支付转化率 | AX2: 下单转化率 | AY2: 刷金额 | AZ2: 刷件数 | BA2: 实际成交额 | BB2: 每日店铺动作 | BC2: 直费用 | BD2: 直点击量 | BE2: PPC | BF2: 直ROI | BG2: 钻费用 | BH2: 钻点击量 | BI2: CPC | BJ2: 钻ROI | BK2: 淘客费用 | BL2: 淘客UV
A3: 2015-11-01 | B3: 2997 | C3: 1152 | D3: 32 | E3: 0.1476 | F3: 0.79 | G3: 4.873882687 | H3: 2.6015625 | I3: 64.4027374 | J3: 136 | K3: 2.22 | L3: 4.819044006 | M3: 4.817147193 | N3: 22222 | O3: 1111 | P3: 2222 | Q3: 2352.911111 | R3: 348 | S3: 2122 | T3: 3232 | U3: 0.7097701149 | V3: 0.0259 | W3: 0.550617 | X3: 61235.7 | Y3: 34 | Z3: 0.042 | AA3: 0.7196 | AB3: =Y3/AO3 -> 0.8095238095 | AC3: 0.6995 | AD3: 1646.651515 | AE3: 118 | AF3: 323 | AG3: 212 | AH3: 222 | AI3: 45 | AJ3: 68910.5 | AK3: 96 | AL3: 17 | AM3: 75515.7 | AN3: 42069 | AO3: 42 | AP3: 1.6429 | AQ3: 33 | AR3: 44 | AS3: 1797.992857 | AT3: 33 | AU3: 5 | AV3: 0.5952 | AW3: 0.0391 | AX3: 0.0365 | AY3: 33333 | AZ3: 333 | BA3: =AM3-AY3 -> 42182.7 | BB3: 报名聚划算 | BC3: =表2[[#This Row],[花费]] -> 2026.23 | BD3: =直通车!D2 -> 545 | BE3: =直通车!E2 -> 3.72 | BF3: =直通车!L2 -> 0.7343687538 | BG3: =钻展!E2 -> 988.66 | BH3: =钻展!D2 -> 152 | BI3: =钻展!G2 -> 6.5 | BJ3: =钻展!T2 -> 1.416058099 | BK3: =淘客!B2 -> 13.47 | BL3: =淘客!D2 -> 23
A4: 2015-11-02 | B4: 2997 | C4: 1152 | D4: 32 | E4: 0.1476 | F4: 0.79 | G4: 4.873882687 | H4: 2.6015625 | I4: 64.4027374 | J4: 136 | K4: 2.22 | L4: 4.819044006 | M4: 4.817147193 | N4: 22222 | O4: 1111 | P4: 2222 | Q4: 2352.911111 | R4: 348 | S4: 2122 | T4: 3232 | U4: 0.7097701149 | V4: 0.0259 | W4: 0.550617 | X4: 61235.7 | Y4: 34 | Z4: 0.042 | AA4: 0.7196 | AB4: =Y4/AO4 -> 0.8095238095 | AC4: 1.6995 | AD4: 1646.651515 | AE4: 118 | AF4: 323 | AG4: 212 | AH4: 222 | AI4: 45 | AJ4: 68910.5 | AK4: 96 | AL4: 17 | AM4: 75515.7 | AN4: 42069 | AO4: 42 | AP4: 1.6429 | AQ4: 33 | AR4: 44 | AS4: 1797.992857 | AT4: 33 | AU4: 5 | AV4: 0.5952 | AW4: 0.0391 | AX4: 0.0365 | AY4: 33333 | AZ4: 333 | BA4: 42182.7 | BB4: 参加折800 | BC4: =表2[[#This Row],[花费]] -> 2026.23 | BD4: =直通车!D3 -> 545 | BE4: =直通车!E3 -> 3.72 | BF4: =直通车!L3 -> 0.7343687538 | BG4: =钻展!E3 -> 988.66 | BH4: =钻展!D3 -> 152 | BI4: =钻展!G3 -> 6.5 | BJ4: =钻展!T3 -> 1.416058099 | BK4: =淘客!B3 -> 13.47 | BL4: =淘客!D3 -> 25
A5: 2015-11-03 | B5: 2997 | C5: 1152 | D5: 32 | E5: 0.1476 | F5: 0.8 | G5: 4.873882687 | H5: 2.6015625 | I5: 64.4027374 | J5: 136 | K5: 2.22 | L5: 4.819044006 | M5: 4.817147193 | N5: 22222 | O5: 1111 | P5: 2222 | Q5: 2352.911111 | R5: 348 | S5: 2122 | T5: 3232 | U5: 0.7097701149 | V5: 0.0259 | W5: 0.550617 | X5: 61235.7 | Y5: 34 | Z5: 0.042 | AA5: 0.7196 | AB5: 0.8095238095 | AC5: 2.6995 | AD5: 1646.651515 | AE5: 118 | AF5: 323 | AG5: 212 | AH5: 222 | AI5: 45 | AJ5: 68910.5 | AK5: 96 | AL5: 17 | AM5: 75515.7 | AN5: 42069 | AO5: 42 | AP5: 1.6429 | AQ5: 33 | AR5: 44 | AS5: 1797.992857 | AT5: 33 | AU5: 5 | AV5: 0.5952 | AW5: 0.0391 | AX5: 0.0365 | AY5: 33333 | AZ5: 333 | BA5: 42182.7 | BB5: 修改主推款标题 | BC5: =表2[[#This Row],[花费]] -> 2026.23 | BD5: =直通车!D4 -> 545 | BE5: =直通车!E4 -> 3.72 | BF5: =直通车!L4 -> 0.7343687538 | BG5: =钻展!E4 -> 988.66 | BH5: =钻展!D4 -> 152 | BI5: =钻展!G4 -> 6.5 | BJ5: =钻展!T4 -> 1.416058099 | BK5: =淘客!B4 -> 13.47 | BL5: =淘客!D4 -> 27
A6: 2015-11-04 | B6: 2997 | C6: 1152 | D6: 32 | E6: 0.1476 | F6: 0.98 | G6: 4.873882687 | H6: 2.6015625 | I6: 64.4027374 | J6: 136 | K6: 2.22 | L6: 4.819044006 | M6: 4.817147193 | N6: 22222 | O6: 1111 | P6: 2222 | Q6: 2352.911111 | R6: 348 | S6: 2122 | T6: 3232 | U6: 0.7097701149 | V6: 0.0259 | W6: 0.550617 | X6: 61235.7 | Y6: 34 | Z6: 0.042 | AA6: 0.7196 | AB6: 0.8095238095 | AC6: 3.6995 | AD6: 1646.651515 | AE6: 118 | AF6: 323 | AG6: 212 | AH6: 222 | AI6: 45 | AJ6: 68910.5 | AK6: 96 | AL6: 17 | AM6: 75515.7 | AN6: 42069 | AO6: 42 | AP6: 1.6429 | AQ6: 33 | AR6: 44 | AS6: 1797.992857 | AT6: 33 | AU6: 5 | AV6: 0.5952 | AW6: 0.0391 | AX6: 0.0365 | AY6: 33333 | AZ6: 333 | BA6: 42182.7 | BC6: =表2[[#This Row],[花费]] -> 2026.23 | BD6: =直通车!D5 -> 545 | BE6: =直通车!E5 -> 3.72 | BF6: =直通车!L5 -> 0.7343687538 | BG6: =钻展!E5 -> 988.66 | BH6: =钻展!D5 -> 152 | BI6: =钻展!G5 -> 6.5 | BJ6: =钻展!T5 -> 1.416058099 | BK6: =淘客!B5 -> 13.47 | BL6: =淘客!D5 -> 29
A7: 2015-11-05 | B7: 2997 | C7: 1152 | D7: 32 | E7: 0.1476 | F7: 0.5980902778 | G7: 4.873882687 | H7: 2.6015625 | I7: 64.4027374 | J7: 136 | K7: 2.22 | L7: 4.819044006 | M7: 4.817147193 | N7: 22222 | O7: 1111 | P7: 2222 | Q7: 2352.911111 | R7: 348 | S7: 2122 | T7: 3232 | U7: 0.7097701149 | V7: 0.0259 | W7: 0.550617 | X7: 61235.7 | Y7: 34 | Z7: 0.042 | AA7: 0.7196 | AB7: 0.8095238095 | AC7: 4.6995 | AD7: 1646.651515 | AE7: 118 | AF7: 323 | AG7: 212 | AH7: 222 | AI7: 45 | AJ7: 68910.5 | AK7: 96 | AL7: 17 | AM7: 75515.7 | AN7: 42069 | AO7: 42 | AP7: 1.6429 | AQ7: 33 | AR7: 44 | AS7: 1797.992857 | AT7: 33 | AU7: 5 | AV7: 0.5952 | AW7: 0.0391 | AX7: 0.0365 | AY7: 33333 | AZ7: 333 | BA7: 42182.7 | BC7: =表2[[#This Row],[花费]] -> 2026.23 | BD7: =直通车!D6 -> 545 | BE7: =直通车!E6 -> 3.72 | BF7: =直通车!L6 -> 0.7343687538 | BG7: =钻展!E6 -> 988.66 | BH7: =钻展!D6 -> 152 | BI7: =钻展!G6 -> 6.5 | BJ7: =钻展!T6 -> 1.416058099 | BK7: =淘客!B6 -> 13.47 | BL7: =淘客!D6 -> 31
A8: 2015-11-06 | B8: 2997 | C8: 1152 | D8: 32 | E8: 0.1476 | F8: 0.5980902778 | G8: 4.873882687 | H8: 2.6015625 | I8: 64.4027374 | J8: 136 | K8: 2.22 | L8: 4.819044006 | M8: 4.817147193 | N8: 22222 | O8: 1111 | P8: 2222 | Q8: 2352.911111 | R8: 348 | S8: 2122 | T8: 3232 | U8: 0.7097701149 | V8: 0.0259 | W8: 0.550617 | X8: 61235.7 | Y8: 34 | Z8: 0.042 | AA8: 0.7196 | AB8: 0.8095238095 | AC8: 5.6995 | AD8: 1646.651515 | AE8: 118 | AF8: 323 | AG8: 212 | AH8: 222 | AI8: 45 | AJ8: 68910.5 | AK8: 96 | AL8: 17 | AM8: 75515.7 | AN8: 42069 | AO8: 42 | AP8: 1.6429 | AQ8: 33 | AR8: 44 | AS8: 1797.992857 | AT8: 33 | AU8: 5 | AV8: 0.5952 | AW8: 0.0391 | AX8: 0.0365 | AY8: 33333 | AZ8: 333 | BA8: 42182.7 | BC8: =表2[[#This Row],[花费]] -> 2026.23 | BD8: =直通车!D7 -> 545 | BE8: =直通车!E7 -> 3.72 | BF8: =直通车!L7 -> 0.7343687538 | BG8: =钻展!E7 -> 988.66 | BH8: =钻展!D7 -> 152 | BI8: =钻展!G7 -> 6.5 | BJ8: =钻展!T7 -> 1.416058099 | BK8: =淘客!B7 -> 13.47 | BL8: =淘客!D7 -> 33
A9: 2015-11-07 | B9: 2997 | C9: 1152 | D9: 32 | E9: 0.1476 | F9: 0.5980902778 | G9: 4.873882687 | H9: 2.6015625 | I9: 64.4027374 | J9: 136 | K9: 2.22 | L9: 4.819044006 | M9: 4.817147193 | N9: 22222 | O9: 1111 | P9: 2222 | Q9: 2352.911111 | R9: 348 | S9: 2122 | T9: 3232 | U9: 0.7097701149 | V9: 0.0259 | W9: 0.550617 | X9: 61235.7 | Y9: 34 | Z9: 0.042 | AA9: 0.7196 | AB9: 0.8095238095 | AC9: 6.6995 | AD9: 1646.651515 | AE9: 118 | AF9: 323 | AG9: 212 | AH9: 222 | AI9: 45 | AJ9: 68910.5 | AK9: 96 | AL9: 17 | AM9: 75515.7 | AN9: 42069 | AO9: 42 | AP9: 1.6429 | AQ9: 33 | AR9: 44 | AS9: 1797.992857 | AT9: 33 | AU9: 5 | AV9: 0.5952 | AW9: 0.0391 | AX9: 0.0365 | AY9: 33333 | AZ9: 333 | BA9: 42182.7 | BC9: =表2[[#This Row],[花费]] -> 2026.23 | BD9: =直通车!D8 -> 545 | BE9: =直通车!E8 -> 3.72 | BF9: =直通车!L8 -> 0.7343687538 | BG9: =钻展!E8 -> 988.66 | BH9: =钻展!D8 -> 152 | BI9: =钻展!G8 -> 6.5 | BJ9: =钻展!T8 -> 1.416058099 | BK9: =淘客!B8 -> 13.47 | BL9: =淘客!D8 -> 35
A10: 2015-11-08 | B10: 2997 | C10: 1152 | D10: 32 | E10: 0.1476 | F10: 0.5980902778 | G10: 4.873882687 | H10: 2.6015625 | I10: 64.4027374 | J10: 136 | K10: 2.22 | L10: 4.819044006 | M10: 4.817147193 | N10: 22222 | O10: 1111 | P10: 2222 | Q10: 2352.911111 | R10: 348 | S10: 2122 | T10: 3232 | U10: 0.7097701149 | V10: 0.0259 | W10: 0.550617 | X10: 61235.7 | Y10: 34 | Z10: 0.042 | AA10: 0.7196 | AB10: 0.8095238095 | AC10: 7.6995 | AD10: 1646.651515 | AE10: 118 | AF10: 323 | AG10: 212 | AH10: 222 | AI10: 45 | AJ10: 68910.5 | AK10: 96 | AL10: 17 | AM10: 75515.7 | AN10: 42069 | AO10: 42 | AP10: 1.6429 | AQ10: 33 | AR10: 44 | AS10: 1797.992857 | AT10: 33 | AU10: 5 | AV10: 0.5952 | AW10: 0.0391 | AX10: 0.0365 | AY10: 33333 | AZ10: 333 | BA10: 42182.7 | BC10: =表2[[#This Row],[花费]] -> 2026.23 | BD10: =直通车!D9 -> 545 | BE10: =直通车!E9 -> 3.72 | BF10: =直通车!L9 -> 0.7343687538 | BG10: =钻展!E9 -> 988.66 | BH10: =钻展!D9 -> 152 | BI10: =钻展!G9 -> 6.5 | BJ10: =钻展!T9 -> 1.416058099 | BK10: =淘客!B9 -> 13.47 | BL10: =淘客!D9 -> 37
A11: 2015-11-09 | B11: 2997 | C11: 1152 | D11: 32 | E11: 0.1476 | F11: 0.5980902778 | G11: 4.873882687 | H11: 2.6015625 | I11: 64.4027374 | J11: 136 | K11: 2.22 | L11: 4.819044006 | M11: 4.817147193 | N11: 22222 | O11: 1111 | P11: 2222 | Q11: 2352.911111 | R11: 348 | S11: 2122 | T11: 3232 | U11: 0.7097701149 | V11: 0.0259 | W11: 0.550617 | X11: 61235.7 | Y11: 34 | Z11: 0.042 | AA11: 0.7196 | AB11: 0.8095238095 | AC11: 8.6995 | AD11: 1646.651515 | AE11: 118 | AF11: 323 | AG11: 212 | AH11: 222 | AI11: 45 | AJ11: 68910.5 | AK11: 96 | AL11: 17 | AM11: 75515.7 | AN11: 42069 | AO11: 42 | AP11: 1.6429 | AQ11: 33 | AR11: 44 | AS11: 1797.992857 | AT11: 33 | AU11: 5 | AV11: 0.5952 | AW11: 0.0391 | AX11: 0.0365 | AY11: 33333 | AZ11: 333 | BA11: 42182.7 | BC11: =表2[[#This Row],[花费]] -> 2026.23 | BD11: =直通车!D10 -> 545 | BE11: =直通车!E10 -> 3.72 | BF11: =直通车!L10 -> 0.7343687538 | BG11: =钻展!E10 -> 988.66 | BH11: =钻展!D10 -> 152 | BI11: =钻展!G10 -> 6.5 | BJ11: =钻展!T10 -> 1.416058099 | BK11: =淘客!B10 -> 13.47 | BL11: =淘客!D10 -> 39
A12: 2015-11-10 | B12: 2997 | C12: 1152 | D12: 32 | E12: 0.1476 | F12: 0.5980902778 | G12: 4.873882687 | H12: 2.6015625 | I12: 64.4027374 | J12: 136 | K12: 2.22 | L12: 4.819044006 | M12: 4.817147193 | N12: 22222 | O12: 1111 | P12: 2222 | Q12: 2352.911111 | R12: 348 | S12: 2122 | T12: 3232 | U12: 0.7097701149 | V12: 0.0259 | W12: 0.550617 | X12: 61235.7 | Y12: 34 | Z12: 0.042 | AA12: 0.7196 | AB12: 0.8095238095 | AC12: 9.6995 | AD12: 1646.651515 | AE12: 118 | AF12: 323 | AG12: 212 | AH12: 222 | AI12: 45 | AJ12: 68910.5 | AK12: 96 | AL12: 17 | AM12: 75515.7 | AN12: 42069 | AO12: 42 | AP12: 1.6429 | AQ12: 33 | AR12: 44 | AS12: 1797.992857 | AT12: 33 | AU12: 5 | AV12: 0.5952 | AW12: 0.0391 | AX12: 0.0365 | AY12: 33333 | AZ12: 333 | BA12: 42182.7 | BC12: =表2[[#This Row],[花费]] -> 2026.23 | BD12: =直通车!D11 -> 545 | BE12: =直通车!E11 -> 3.72 | BF12: =直通车!L11 -> 0.7343687538 | BG12: =钻展!E11 -> 988.66 | BH12: =钻展!D11 -> 152 | BI12: =钻展!G11 -> 6.5 | BJ12: =钻展!T11 -> 1.416058099 | BK12: =淘客!B11 -> 13.47 | BL12: =淘客!D11 -> 41
A13: 2015-11-11 | B13: 2997 | C13: 1152 | D13: 32 | E13: 0.1476 | F13: 0.5980902778 | G13: 4.873882687 | H13: 2.6015625 | I13: 64.4027374 | J13: 136 | K13: 2.22 | L13: 4.819044006 | M13: 4.817147193 | N13: 22222 | O13: 1111 | P13: 2222 | Q13: 2352.911111 | R13: 348 | S13: 2122 | T13: 3232 | U13: 0.7097701149 | V13: 0.0259 | W13: 0.550617 | X13: 61235.7 | Y13: 34 | Z13: 0.042 | AA13: 0.7196 | AB13: 0.8095238095 | AC13: 10.6995 | AD13: 1646.651515 | AE13: 118 | AF13: 323 | AG13: 212 | AH13: 222 | AI13: 45 | AJ13: 68910.5 | AK13: 96 | AL13: 17 | AM13: 75515.7 | AN13: 42069 | AO13: 42 | AP13: 1.6429 | AQ13: 33 | AR13: 44 | AS13: 1797.992857 | AT13: 33 | AU13: 5 | AV13: 0.5952 | AW13: 0.0391 | AX13: 0.0365 | AY13: 33333 | AZ13: 333 | BA13: 42182.7 | BC13: =表2[[#This Row],[花费]] -> 2026.23 | BD13: =直通车!D12 -> 545 | BE13: =直通车!E12 -> 3.72 | BF13: =直通车!L12 -> 0.7343687538 | BG13: =钻展!E12 -> 988.66 | BH13: =钻展!D12 -> 152 | BI13: =钻展!G12 -> 6.5 | BJ13: =钻展!T12 -> 1.416058099 | BK13: =淘客!B12 -> 13.47 | BL13: =淘客!D12 -> 43
A14: 2015-11-12 | B14: 2997 | C14: 1152 | D14: 32 | E14: 0.1476 | F14: 0.5980902778 | G14: 4.873882687 | H14: 2.6015625 | I14: 64.4027374 | J14: 136 | K14: 2.22 | L14: 4.819044006 | M14: 4.817147193 | N14: 22222 | O14: 1111 | P14: 2222 | Q14: 2352.911111 | R14: 348 | S14: 2122 | T14: 3232 | U14: 0.7097701149 | V14: 0.0259 | W14: 0.550617 | X14: 61235.7 | Y14: 34 | Z14: 0.042 | AA14: 0.7196 | AB14: 0.8095238095 | AC14: 11.6995 | AD14: 1646.651515 | AE14: 118 | AF14: 323 | AG14: 212 | AH14: 222 | AI14: 45 | AJ14: 68910.5 | AK14: 96 | AL14: 17 | AM14: 75515.7 | AN14: 42069 | AO14: 42 | AP14: 1.6429 | AQ14: 33 | AR14: 44 | AS14: 1797.992857 | AT14: 33 | AU14: 5 | AV14: 0.5952 | AW14: 0.0391 | AX14: 0.0365 | AY14: 33333 | AZ14: 333 | BA14: 42182.7 | BC14: =表2[[#This Row],[花费]] -> 2026.23 | BD14: =直通车!D13 -> 545 | BE14: =直通车!E13 -> 3.72 | BF14: =直通车!L13 -> 0.7343687538 | BG14: =钻展!E13 -> 988.66 | BH14: =钻展!D13 -> 152 | BI14: =钻展!G13 -> 6.5 | BJ14: =钻展!T13 -> 1.416058099 | BK14: =淘客!B13 -> 13.47 | BL14: =淘客!D13 -> 45
A15: 2015-11-13 | B15: 2997 | C15: 1152 | D15: 32 | E15: 0.1476 | F15: 0.5980902778 | G15: 4.873882687 | H15: 2.6015625 | I15: 64.4027374 | J15: 136 | K15: 2.22 | L15: 4.819044006 | M15: 4.817147193 | N15: 22222 | O15: 1111 | P15: 2222 | Q15: 2352.911111 | R15: 348 | S15: 2122 | T15: 3232 | U15: 0.7097701149 | V15: 0.0259 | W15: 0.550617 | X15: 61235.7 | Y15: 34 | Z15: 0.042 | AA15: 0.7196 | AB15: 0.8095238095 | AC15: 12.6995 | AD15: 1646.651515 | AE15: 118 | AF15: 323 | AG15: 212 | AH15: 222 | AI15: 45 | AJ15: 68910.5 | AK15: 88 | AL15: 17 | AM15: 75515.7 | AN15: 42069 | AO15: 42 | AP15: 1.6429 | AQ15: 33 | AR15: 44 | AS15: 1797.992857 | AT15: 33 | AU15: 5 | AV15: 0.5952 | AW15: 0.0391 | AX15: 0.0365 | AY15: 33333 | AZ15: 333 | BA15: 42182.7 | BC15: =表2[[#This Row],[花费]] -> 2026.23 | BD15: =直通车!D14 -> 545 | BE15: =直通车!E14 -> 3.72 | BF15: =直通车!L14 -> 0.7343687538 | BG15: =钻展!E14 -> 988.66 | BH15: =钻展!D14 -> 152 | BI15: =钻展!G14 -> 6.5 | BJ15: =钻展!T14 -> 1.416058099 | BK15: =淘客!B14 -> 13.47 | BL15: =淘客!D14 -> 47
A16: 2015-11-14 | B16: 2997 | C16: 1152 | D16: 32 | E16: 0.1476 | F16: 0.5980902778 | G16: 4.873882687 | H16: 2.6015625 | I16: 64.4027374 | J16: 136 | K16: 2.22 | L16: 4.819044006 | M16: 4.817147193 | N16: 22222 | O16: 1111 | P16: 2222 | Q16: 2352.911111 | R16: 348 | S16: 2122 | T16: 3232 | U16: 0.7097701149 | V16: 0.0259 | W16: 0.550617 | X16: 61235.7 | Y16: 34 | Z16: 0.042 | AA16: 0.7196 | AB16: 0.8095238095 | AC16: 13.6995 | AD16: 1646.651515 | AE16: 118 | AF16: 323 | AG16: 212 | AH16: 222 | AI16: 45 | AJ16: 68910.5 | AK16: 33 | AL16: 17 | AM16: 75515.7 | AN16: 42069 | AO16: 42 | AP16: 1.6429 | AQ16: 33 | AR16: 44 | AS16: 1797.992857 | AT16: 33 | AU16: 5 | AV16: 0.5952 | AW16: 0.0391 | AX16: 0.0365 | AY16: 33333 | AZ16: 333 | BA16: 42182.7 | BC16: =表2[[#This Row],[花费]] -> 2026.23 | BD16: =直通车!D15 -> 545 | BE16: =直通车!E15 -> 3.72 | BF16: =直通车!L15 -> 0.7343687538 | BG16: =钻展!E15 -> 988.66 | BH16: =钻展!D15 -> 152 | BI16: =钻展!G15 -> 6.5 | BJ16: =钻展!T15 -> 1.416058099 | BK16: =淘客!B15 -> 13.47 | BL16: =淘客!D15 -> 49
A17: 2015-11-15 | B17: 2997 | C17: 1152 | D17: 32 | E17: 0.1476 | F17: 0.5980902778 | G17: 4.873882687 | H17: 2.6015625 | I17: 64.4027374 | J17: 136 | K17: 2.22 | L17: 4.819044006 | M17: 4.817147193 | N17: 22222 | O17: 1111 | P17: 2222 | Q17: 2352.911111 | R17: 348 | S17: 2122 | T17: 3232 | U17: 0.7097701149 | V17: 0.0259 | W17: 0.550617 | X17: 61235.7 | Y17: 34 | Z17: 0.042 | AA17: 0.7196 | AB17: 0.8095238095 | AC17: 14.6995 | AD17: 1646.651515 | AE17: 118 | AF17: 323 | AG17: 212 | AH17: 222 | AI17: 45 | AJ17: 68910.5 | AK17: 22 | AL17: 17 | AM17: 75515.7 | AN17: 42069 | AO17: 42 | AP17: 1.6429 | AQ17: 33 | AR17: 44 | AS17: 1797.992857 | AT17: 33 | AU17: 5 | AV17: 0.5952 | AW17: 0.0391 | AX17: 0.0365 | AY17: 33333 | AZ17: 333 | BA17: 42182.7 | BC17: =表2[[#This Row],[花费]] -> 2026.23 | BD17: =直通车!D16 -> 545 | BE17: =直通车!E16 -> 3.72 | BF17: =直通车!L16 -> 0.7343687538 | BG17: =钻展!E16 -> 988.66 | BH17: =钻展!D16 -> 152 | BI17: =钻展!G16 -> 6.5 | BJ17: =钻展!T16 -> 1.416058099 | BK17: =淘客!B16 -> 13.47 | BL17: =淘客!D16 -> 51
A18: 2015-11-16 | B18: 2997 | C18: 1152 | D18: 32 | E18: 0.1476 | F18: 0.5980902778 | G18: 4.873882687 | H18: 2.6015625 | I18: 64.4027374 | J18: 136 | K18: 2.22 | L18: 4.819044006 | M18: 4.817147193 | N18: 22222 | O18: 1111 | P18: 2222 | Q18: 2352.911111 | R18: 348 | S18: 2122 | T18: 3232 | U18: 0.7097701149 | V18: 0.0259 | W18: 0.550617 | X18: 61235.7 | Y18: 34 | Z18: 0.042 | AA18: 0.7196 | AB18: 0.8095238095 | AC18: 15.6995 | AD18: 1646.651515 | AE18: 118 | AF18: 323 | AG18: 212 | AH18: 222 | AI18: 45 | AJ18: 68910.5 | AK18: 11 | AL18: 17 | AM18: 75515.7 | AN18: 42069 | AO18: 42 | AP18: 1.6429 | AQ18: 33 | AR18: 44 | AS18: 1797.992857 | AT18: 33 | AU18: 5 | AV18: 0.5952 | AW18: 0.0391 | AX18: 0.0365 | AY18: 33333 | AZ18: 333 | BA18: 42182.7 | BC18: =表2[[#This Row],[花费]] -> 2026.23 | BD18: =直通车!D17 -> 545 | BE18: =直通车!E17 -> 3.72 | BF18: =直通车!L17 -> 0.7343687538 | BG18: =钻展!E17 -> 988.66 | BH18: =钻展!D17 -> 152 | BI18: =钻展!G17 -> 6.5 | BJ18: =钻展!T17 -> 1.416058099 | BK18: =淘客!B17 -> 13.47 | BL18: =淘客!D17 -> 53
A19: 2015-11-17 | B19: 2997 | C19: 1152 | D19: 32 | E19: 0.1476 | F19: 0.5980902778 | G19: 4.873882687 | H19: 2.6015625 | I19: 64.4027374 | J19: 136 | K19: 2.22 | L19: 4.819044006 | M19: 4.817147193 | N19: 22222 | O19: 1111 | P19: 2222 | Q19: 2352.911111 | R19: 348 | S19: 2122 | T19: 3232 | U19: 0.7097701149 | V19: 0.0259 | W19: 0.550617 | X19: 61235.7 | Y19: 34 | Z19: 0.042 | AA19: 0.7196 | AB19: 0.8095238095 | AC19: 16.6995 | AD19: 1646.651515 | AE19: 118 | AF19: 323 | AG19: 212 | AH19: 222 | AI19: 45 | AJ19: 68910.5 | AK19: 96 | AL19: 17 | AM19: 75515.7 | AN19: 42069 | AO19: 42 | AP19: 1.6429 | AQ19: 33 | AR19: 44 | AS19: 1797.992857 | AT19: 33 | AU19: 5 | AV19: 0.5952 | AW19: 0.0391 | AX19: 0.0365 | AY19: 33333 | AZ19: 333 | BA19: 42182.7 | BC19: =表2[[#This Row],[花费]] -> 2026.23 | BD19: =直通车!D18 -> 545 | BE19: =直通车!E18 -> 3.72 | BF19: =直通车!L18 -> 0.7343687538 | BG19: =钻展!E18 -> 988.66 | BH19: =钻展!D18 -> 152 | BI19: =钻展!G18 -> 6.5 | BJ19: =钻展!T18 -> 1.416058099 | BK19: =淘客!B18 -> 13.47 | BL19: =淘客!D18 -> 55
A20: 2015-11-18 | B20: 2997 | C20: 1152 | D20: 32 | E20: 0.1476 | F20: 0.5980902778 | G20: 4.873882687 | H20: 2.6015625 | I20: 64.4027374 | J20: 136 | K20: 2.22 | L20: 4.819044006 | M20: 4.817147193 | N20: 22222 | O20: 1111 | P20: 2222 | Q20: 2352.911111 | R20: 348 | S20: 2122 | T20: 3232 | U20: 0.7097701149 | V20: 0.0259 | W20: 0.550617 | X20: 61235.7 | Y20: 34 | Z20: 0.042 | AA20: 0.7196 | AB20: 0.8095238095 | AC20: 17.6995 | AD20: 1646.651515 | AE20: 118 | AF20: 323 | AG20: 212 | AH20: 222 | AI20: 45 | AJ20: 68910.5 | AK20: 96 | AL20: 17 | AM20: 75515.7 | AN20: 42069 | AO20: 42 | AP20: 1.6429 | AQ20: 33 | AR20: 44 | AS20: 1797.992857 | AT20: 33 | AU20: 5 | AV20: 0.5952 | AW20: 0.0391 | AX20: 0.0365 | AY20: 33333 | AZ20: 333 | BA20: 42182.7 | BC20: =表2[[#This Row],[花费]] -> 2026.23 | BD20: =直通车!D19 -> 545 | BE20: =直通车!E19 -> 3.72 | BF20: =直通车!L19 -> 0.7343687538 | BG20: =钻展!E19 -> 988.66 | BH20: =钻展!D19 -> 152 | BI20: =钻展!G19 -> 6.5 | BJ20: =钻展!T19 -> 1.416058099 | BK20: =淘客!B19 -> 13.47 | BL20: =淘客!D19 -> 57
A21: 2015-11-19 | B21: 2997 | C21: 1152 | D21: 32 | E21: 0.1476 | F21: 0.5980902778 | G21: 4.873882687 | H21: 2.6015625 | I21: 64.4027374 | J21: 136 | K21: 2.22 | L21: 4.819044006 | M21: 4.817147193 | N21: 22222 | O21: 1111 | P21: 2222 | Q21: 2352.911111 | R21: 348 | S21: 2122 | T21: 3232 | U21: 0.7097701149 | V21: 0.0259 | W21: 0.550617 | X21: 61235.7 | Y21: 34 | Z21: 0.042 | AA21: 0.7196 | AB21: 0.8095238095 | AC21: 18.6995 | AD21: 1646.651515 | AE21: 118 | AF21: 323 | AG21: 212 | AH21: 222 | AI21: 45 | AJ21: 68910.5 | AK21: 96 | AL21: 17 | AM21: 75515.7 | AN21: 42069 | AO21: 42 | AP21: 1.6429 | AQ21: 33 | AR21: 44 | AS21: 1797.992857 | AT21: 33 | AU21: 5 | AV21: 0.5952 | AW21: 0.0391 | AX21: 0.0365 | AY21: 33333 | AZ21: 333 | BA21: 42182.7 | BC21: =表2[[#This Row],[花费]] -> 2026.23 | BD21: =直通车!D20 -> 545 | BE21: =直通车!E20 -> 3.72 | BF21: =直通车!L20 -> 0.7343687538 | BG21: =钻展!E20 -> 988.66 | BH21: =钻展!D20 -> 152 | BI21: =钻展!G20 -> 6.5 | BJ21: =钻展!T20 -> 1.416058099 | BK21: =淘客!B20 -> 13.47 | BL21: =淘客!D20 -> 59
A22: 2015-11-20 | B22: 2997 | C22: 1152 | D22: 32 | E22: 0.1476 | F22: 0.5980902778 | G22: 4.873882687 | H22: 2.6015625 | I22: 64.4027374 | J22: 136 | K22: 2.22 | L22: 4.819044006 | M22: 4.817147193 | N22: 22222 | O22: 1111 | P22: 2222 | Q22: 2352.911111 | R22: 348 | S22: 2122 | T22: 3232 | U22: 0.7097701149 | V22: 0.0259 | W22: 0.550617 | X22: 61235.7 | Y22: 34 | Z22: 0.042 | AA22: 0.7196 | AB22: 0.8095238095 | AC22: 19.6995 | AD22: 1646.651515 | AE22: 118 | AF22: 323 | AG22: 212 | AH22: 222 | AI22: 45 | AJ22: 68910.5 | AK22: 96 | AL22: 17 | AM22: 75515.7 | AN22: 42069 | AO22: 42 | AP22: 1.6429 | AQ22: 33 | AR22: 44 | AS22: 1797.992857 | AT22: 33 | AU22: 5 | AV22: 0.5952 | AW22: 0.0391 | AX22: 0.0365 | AY22: 33333 | AZ22: 333 | BA22: 42182.7 | BC22: =表2[[#This Row],[花费]] -> 2026.23 | BD22: =直通车!D21 -> 545 | BE22: =直通车!E21 -> 3.72 | BF22: =直通车!L21 -> 0.7343687538 | BG22: =钻展!E21 -> 988.66 | BH22: =钻展!D21 -> 152 | BI22: =钻展!G21 -> 6.5 | BJ22: =钻展!T21 -> 1.416058099 | BK22: =淘客!B21 -> 13.47 | BL22: =淘客!D21 -> 61
A23: 2015-11-21 | B23: 2997 | C23: 1152 | D23: 32 | E23: 0.1476 | F23: 0.5980902778 | G23: 4.873882687 | H23: 2.6015625 | I23: 64.4027374 | J23: 136 | K23: 2.22 | L23: 4.819044006 | M23: 4.817147193 | N23: 22222 | O23: 1111 | P23: 2222 | Q23: 2352.911111 | R23: 348 | S23: 2122 | T23: 3232 | U23: 0.7097701149 | V23: 0.0259 | W23: 0.550617 | X23: 61235.7 | Y23: 34 | Z23: 0.042 | AA23: 0.7196 | AB23: 0.8095238095 | AC23: 20.6995 | AD23: 1646.651515 | AE23: 118 | AF23: 323 | AG23: 212 | AH23: 222 | AI23: 45 | AJ23: 68910.5 | AK23: 96 | AL23: 17 | AM23: 75515.7 | AN23: 42069 | AO23: 42 | AP23: 1.6429 | AQ23: 33 | AR23: 44 | AS23: 1797.992857 | AT23: 33 | AU23: 5 | AV23: 0.5952 | AW23: 0.0391 | AX23: 0.0365 | AY23: 33333 | AZ23: 333 | BA23: 42182.7 | BC23: =表2[[#This Row],[花费]] -> 2026.23 | BD23: =直通车!D22 -> 545 | BE23: =直通车!E22 -> 3.72 | BF23: =直通车!L22 -> 0.7343687538 | BG23: =钻展!E22 -> 988.66 | BH23: =钻展!D22 -> 152 | BI23: =钻展!G22 -> 6.5 | BJ23: =钻展!T22 -> 1.416058099 | BK23: =淘客!B22 -> 13.47 | BL23: =淘客!D22 -> 63
A24: 2015-11-22 | B24: 2997 | C24: 1152 | D24: 32 | E24: 0.1476 | F24: 0.5980902778 | G24: 4.873882687 | H24: 2.6015625 | I24: 64.4027374 | J24: 136 | K24: 2.22 | L24: 4.819044006 | M24: 4.817147193 | N24: 22222 | O24: 1111 | P24: 2222 | Q24: 2352.911111 | R24: 348 | S24: 2122 | T24: 3232 | U24: 0.7097701149 | V24: 0.0259 | W24: 0.550617 | X24: 61235.7 | Y24: 34 | Z24: 0.042 | AA24: 0.7196 | AB24: 0.8095238095 | AC24: 21.6995 | AD24: 1646.651515 | AE24: 118 | AF24: 323 | AG24: 212 | AH24: 222 | AI24: 45 | AJ24: 68910.5 | AK24: 96 | AL24: 17 | AM24: 75515.7 | AN24: 42069 | AO24: 42 | AP24: 1.6429 | AQ24: 33 | AR24: 44 | AS24: 1797.992857 | AT24: 33 | AU24: 5 | AV24: 0.5952 | AW24: 0.0391 | AX24: 0.0365 | AY24: 33333 | AZ24: 333 | BA24: 42182.7 | BC24: =表2[[#This Row],[花费]] -> 2026.23 | BD24: =直通车!D23 -> 545 | BE24: =直通车!E23 -> 3.72 | BF24: =直通车!L23 -> 0.7343687538 | BG24: =钻展!E23 -> 988.66 | BH24: =钻展!D23 -> 152 | BI24: =钻展!G23 -> 6.5 | BJ24: =钻展!T23 -> 1.416058099 | BK24: =淘客!B23 -> 13.47 | BL24: =淘客!D23 -> 65
A25: 2015-11-23 | B25: 2997 | C25: 1152 | D25: 32 | E25: 0.1476 | F25: 0.5980902778 | G25: 4.873882687 | H25: 2.6015625 | I25: 64.4027374 | J25: 136 | K25: 2.22 | L25: 4.819044006 | M25: 4.817147193 | N25: 22222 | O25: 1111 | P25: 2222 | Q25: 2352.911111 | R25: 348 | S25: 2122 | T25: 3232 | U25: 0.7097701149 | V25: 0.0259 | W25: 0.550617 | X25: 61235.7 | Y25: 34 | Z25: 0.042 | AA25: 0.7196 | AB25: 0.8095238095 | AC25: 22.6995 | AD25: 1646.651515 | AE25: 118 | AF25: 323 | AG25: 212 | AH25: 222 | AI25: 45 | AJ25: 68910.5 | AK25: 96 | AL25: 17 | AM25: 75515.7 | AN25: 42069 | AO25: 42 | AP25: 1.6429 | AQ25: 33 | AR25: 44 | AS25: 1797.992857 | AT25: 33 | AU25: 5 | AV25: 0.5952 | AW25: 0.0391 | AX25: 0.0365 | AY25: 33333 | AZ25: 3344 | BA25: 42182.7 | BC25: =表2[[#This Row],[花费]] -> 2026.23 | BD25: =直通车!D24 -> 545 | BE25: =直通车!E24 -> 3.72 | BF25: =直通车!L24 -> 0.7343687538 | BG25: =钻展!E24 -> 988.66 | BH25: =钻展!D24 -> 152 | BI25: =钻展!G24 -> 6.5 | BJ25: =钻展!T24 -> 1.416058099 | BK25: =淘客!B24 -> 13.47 | BL25: =淘客!D24 -> 67
A26: 2015-11-24 | B26: 2997 | C26: 1152 | D26: 32 | E26: 0.1476 | F26: 0.5980902778 | G26: 4.873882687 | H26: 2.6015625 | I26: 64.4027374 | J26: 136 | K26: 2.22 | L26: 4.819044006 | M26: 4.817147193 | N26: 22222 | O26: 1111 | P26: 2222 | Q26: 2352.911111 | R26: 348 | S26: 2122 | T26: 3232 | U26: 0.7097701149 | V26: 0.0259 | W26: 0.550617 | X26: 61235.7 | Y26: 34 | Z26: 0.042 | AA26: 0.7196 | AB26: 0.8095238095 | AC26: 23.6995 | AD26: 1646.651515 | AE26: 118 | AF26: 323 | AG26: 212 | AH26: 222 | AI26: 45 | AJ26: 68910.5 | AK26: 96 | AL26: 17 | AM26: 75515.7 | AN26: 42069 | AO26: 42 | AP26: 1.6429 | AQ26: 33 | AR26: 44 | AS26: 1797.992857 | AT26: 33 | AU26: 5 | AV26: 0.5952 | AW26: 0.0391 | AX26: 0.0365 | AY26: 33333 | AZ26: 333 | BA26: 42182.7 | BC26: =表2[[#This Row],[花费]] -> 2026.23 | BD26: =直通车!D25 -> 545 | BE26: =直通车!E25 -> 3.72 | BF26: =直通车!L25 -> 0.7343687538 | BG26: =钻展!E25 -> 988.66 | BH26: =钻展!D25 -> 152 | BI26: =钻展!G25 -> 6.5 | BJ26: =钻展!T25 -> 1.416058099 | BK26: =淘客!B25 -> 13.47 | BL26: =淘客!D25 -> 69
A27: 2015-11-25 | B27: 2997 | C27: 1152 | D27: 32 | E27: 0.1476 | F27: 0.5980902778 | G27: 4.873882687 | H27: 2.6015625 | I27: 64.4027374 | J27: 136 | K27: 2.22 | L27: 4.819044006 | M27: 4.817147193 | N27: 22222 | O27: 1111 | P27: 2222 | Q27: 2352.911111 | R27: 348 | S27: 2122 | T27: 3232 | U27: 0.7097701149 | V27: 0.0259 | W27: 0.550617 | X27: 61235.7 | Y27: 34 | Z27: 0.042 | AA27: 0.7196 | AB27: 0.8095238095 | AC27: 24.6995 | AD27: 1646.651515 | AE27: 118 | AF27: 323 | AG27: 212 | AH27: 222 | AI27: 45 | AJ27: 68910.5 | AK27: 96 | AL27: 17 | AM27: 75515.7 | AN27: 42069 | AO27: 42 | AP27: 1.6429 | AQ27: 33 | AR27: 44 | AS27: 1797.992857 | AT27: 33 | AU27: 5 | AV27: 0.5952 | AW27: 0.0391 | AX27: 0.0365 | AY27: 33333 | AZ27: 333 | BA27: 42182.7 | BC27: =表2[[#This Row],[花费]] -> 2026.23 | BD27: =直通车!D26 -> 545 | BE27: =直通车!E26 -> 3.72 | BF27: =直通车!L26 -> 0.7343687538 | BG27: =钻展!E26 -> 988.66 | BH27: =钻展!D26 -> 152 | BI27: =钻展!G26 -> 6.5 | BJ27: =钻展!T26 -> 1.416058099 | BK27: =淘客!B26 -> 13.47 | BL27: =淘客!D26 -> 71
A28: 2015-11-26 | B28: 2997 | C28: 1152 | D28: 32 | E28: 0.1476 | F28: 0.5980902778 | G28: 4.873882687 | H28: 2.6015625 | I28: 64.4027374 | J28: 136 | K28: 2.22 | L28: 4.819044006 | M28: 4.817147193 | N28: 22222 | O28: 1111 | P28: 2222 | Q28: 2352.911111 | R28: 348 | S28: 2122 | T28: 3232 | U28: 0.7097701149 | V28: 0.0259 | W28: 0.550617 | X28: 61235.7 | Y28: 34 | Z28: 0.042 | AA28: 0.7196 | AB28: 0.8095238095 | AC28: 25.6995 | AD28: 1646.651515 | AE28: 118 | AF28: 323 | AG28: 212 | AH28: 222 | AI28: 45 | AJ28: 68910.5 | AK28: 96 | AL28: 17 | AM28: 75515.7 | AN28: 42069 | AO28: 42 | AP28: 1.6429 | AQ28: 33 | AR28: 44 | AS28: 1797.992857 | AT28: 33 | AU28: 5 | AV28: 0.5952 | AW28: 0.0391 | AX28: 0.0365 | AY28: 33333 | AZ28: 333 | BA28: 42182.7 | BC28: =表2[[#This Row],[花费]] -> 2026.23 | BD28: =直通车!D27 -> 545 | BE28: =直通车!E27 -> 3.72 | BF28: =直通车!L27 -> 0.7343687538 | BG28: =钻展!E27 -> 988.66 | BH28: =钻展!D27 -> 152 | BI28: =钻展!G27 -> 6.5 | BJ28: =钻展!T27 -> 1.416058099 | BK28: =淘客!B27 -> 13.47 | BL28: =淘客!D27 -> 73
A29: 2015-11-27 | B29: 2997 | C29: 1152 | D29: 32 | E29: 0.1476 | F29: 0.5980902778 | G29: 4.873882687 | H29: 2.6015625 | I29: 64.4027374 | J29: 136 | K29: 2.22 | L29: 4.819044006 | M29: 4.817147193 | N29: 22222 | O29: 1111 | P29: 2222 | Q29: 2352.911111 | R29: 348 | S29: 2122 | T29: 3232 | U29: 0.7097701149 | V29: 0.0259 | W29: 0.550617 | X29: 61235.7 | Y29: 34 | Z29: 0.042 | AA29: 0.7196 | AB29: 0.8095238095 | AC29: 26.6995 | AD29: 1646.651515 | AE29: 118 | AF29: 323 | AG29: 212 | AH29: 222 | AI29: 45 | AJ29: 68910.5 | AK29: 96 | AL29: 17 | AM29: 75515.7 | AN29: 42069 | AO29: 42 | AP29: 1.6429 | AQ29: 33 | AR29: 44 | AS29: 1797.992857 | AT29: 33 | AU29: 5 | AV29: 0.5952 | AW29: 0.0391 | AX29: 0.0365 | AY29: 33333 | AZ29: 333 | BA29: 42182.7 | BC29: =表2[[#This Row],[花费]] -> 2026.23 | BD29: =直通车!D28 -> 545 | BE29: =直通车!E28 -> 3.72 | BF29: =直通车!L28 -> 0.7343687538 | BG29: =钻展!E28 -> 988.66 | BH29: =钻展!D28 -> 152 | BI29: =钻展!G28 -> 6.5 | BJ29: =钻展!T28 -> 1.416058099 | BK29: =淘客!B28 -> 13.47 | BL29: =淘客!D28 -> 75
A30: 2015-11-28 | B30: 2997 | C30: 1152 | D30: 32 | E30: 0.1476 | F30: 0.5980902778 | G30: 4.873882687 | H30: 2.6015625 | I30: 64.4027374 | J30: 136 | K30: 2.22 | L30: 4.819044006 | M30: 4.817147193 | N30: 22222 | O30: 1111 | P30: 2222 | Q30: 2352.911111 | R30: 348 | S30: 2122 | T30: 3232 | U30: 0.7097701149 | V30: 0.0259 | W30: 0.550617 | X30: 61235.7 | Y30: 34 | Z30: 0.042 | AA30: 0.7196 | AB30: 0.8095238095 | AC30: 27.6995 | AD30: 1646.651515 | AE30: 118 | AF30: 323 | AG30: 212 | AH30: 222 | AI30: 45 | AJ30: 68910.5 | AK30: 96 | AL30: 17 | AM30: 75515.7 | AN30: 42069 | AO30: 42 | AP30: 1.6429 | AQ30: 33 | AR30: 44 | AS30: 1797.992857 | AT30: 33 | AU30: 5 | AV30: 0.5952 | AW30: 0.0391 | AX30: 0.0365 | AY30: 33333 | AZ30: 333 | BA30: 42182.7 | BC30: =表2[[#This Row],[花费]] -> 2026.23 | BD30: =直通车!D29 -> 545 | BE30: =直通车!E29 -> 3.72 | BF30: =直通车!L29 -> 0.7343687538 | BG30: =钻展!E29 -> 988.66 | BH30: =钻展!D29 -> 152 | BI30: =钻展!G29 -> 6.5 | BJ30: =钻展!T29 -> 1.416058099 | BK30: =淘客!B29 -> 13.47 | BL30: =淘客!D29 -> 77
A31: 2015-11-29 | B31: 2997 | C31: 1152 | D31: 32 | E31: 0.1476 | F31: 0.5980902778 | G31: 4.873882687 | H31: 2.6015625 | I31: 64.4027374 | J31: 136 | K31: 2.22 | L31: 4.819044006 | M31: 4.817147193 | N31: 22222 | O31: 1111 | P31: 2222 | Q31: 2352.911111 | R31: 348 | S31: 2122 | T31: 3232 | U31: 0.7097701149 | V31: 0.0259 | W31: 0.550617 | X31: 61235.7 | Y31: 34 | Z31: 0.042 | AA31: 0.7196 | AB31: 0.8095238095 | AC31: 28.6995 | AD31: 1646.651515 | AE31: 118 | AF31: 323 | AG31: 212 | AH31: 222 | AI31: 45 | AJ31: 68910.5 | AK31: 96 | AL31: 17 | AM31: 75515.7 | AN31: 42069 | AO31: 42 | AP31: 1.6429 | AQ31: 33 | AR31: 44 | AS31: 1797.992857 | AT31: 33 | AU31: 5 | AV31: 0.5952 | AW31: 0.0391 | AX31: 0.0365 | AY31: 33333 | AZ31: 333 | BA31: 42182.7 | BC31: =表2[[#This Row],[花费]] -> 2026.23 | BD31: =直通车!D30 -> 545 | BE31: =直通车!E30 -> 3.72 | BF31: =直通车!L30 -> 0.7343687538 | BG31: =钻展!E30 -> 988.66 | BH31: =钻展!D30 -> 152 | BI31: =钻展!G30 -> 6.5 | BJ31: =钻展!T30 -> 0.1517205106 | BK31: =淘客!B30 -> 13.47 | BL31: =淘客!D30 -> 79
A32: 2015-11-30 | B32: 2997 | C32: 1152 | D32: 32 | E32: 0.1476 | F32: 0.5980902778 | G32: 4.873882687 | H32: 2.6015625 | I32: 64.4027374 | J32: 136 | K32: 2.22 | L32: 4.819044006 | M32: 4.817147193 | N32: 22222 | O32: 1111 | P32: 2222 | Q32: 2352.911111 | R32: 348 | S32: 2122 | T32: 3232 | U32: 0.7097701149 | V32: 0.0259 | W32: 0.550617 | X32: 61235.7 | Y32: 34 | Z32: 0.042 | AA32: 0.7196 | AB32: 0.8095238095 | AC32: 29.6995 | AD32: 1646.651515 | AE32: 118 | AF32: 323 | AG32: 212 | AH32: 222 | AI32: 45 | AJ32: 68910.5 | AK32: 96 | AL32: 17 | AM32: 75515.7 | AN32: 42069 | AO32: 42 | AP32: 1.6429 | AQ32: 33 | AR32: 44 | AS32: 1797.992857 | AT32: 33 | AU32: 5 | AV32: 0.5952 | AW32: 0.0391 | AX32: 0.0365 | AY32: 33333 | AZ32: 333 | BA32: 42182.7 | BC32: =表2[[#This Row],[花费]] -> 0 | BD32: =直通车!D31 -> 545 | BE32: =直通车!E31 -> 3.72 | BF32: =直通车!L31 -> 0.7343687538 | BG32: =钻展!E31 -> 988.66 | BH32: =钻展!D31 -> 152 | BI32: =钻展!G31 -> 6.5 | BJ32: =钻展!T31 -> 1.416058099 | BK32: =淘客!B31 -> 13.47 | BL32: =淘客!D31 -> 81
BE33: =直通车!E32 -> 0 | BF33: =直通车!L32 -> 0 | BG33: =钻展!E32 -> 0 | BH33: =钻展!D32 -> 0 | BI33: =钻展!G32 -> 0 | BJ33: =钻展!T32 -> 0 | BK33: =淘客!B32 -> 0 | BL33: =淘客!D32 -> 83
A34: 月度平均值 | B34: =AVERAGE(B3:B33) -> 2997 | C34: =AVERAGE(C3:C33) -> 1152 | D34: / | E34: =AVERAGE(E3:E33) -> 0.1476 | F34: =AVERAGE(F3:F33) -> 0.6303449074 | G34: =AVERAGE(G3:G33) -> 4.873882687 | H34: =AVERAGE(H3:H33) -> 2.6015625 | I34: =AVERAGE(I3:I33) -> 64.4027374 | J34: =AVERAGE(J3:J33) -> 136 | K34: =AVERAGE(K3:K33) -> 2.22 | L34: =AVERAGE(L3:L33) -> 4.819044006 | M34: =AVERAGE(M3:M33) -> 4.817147193 | N34: 22222 | O34: 1111 | P34: =AVERAGE(P3:P33) -> 2222 | Q34: =AVERAGE(Q3:Q33) -> 2352.911111 | R34: =AVERAGE(R3:R33) -> 348 | S34: =AVERAGE(S3:S33) -> 2122 | T34: =AVERAGE(T3:T33) -> 3232 | U34: =AVERAGE(U3:U33) -> 0.7097701149 | V34: =AVERAGE(V3:V33) -> 0.0259 | W34: =AVERAGE(W3:W33) -> 0.550617 | X34: =AVERAGE(X3:X33) -> 61235.7 | Y34: =AVERAGE(Y3:Y33) -> 34 | AI34: =AVERAGE(AI3:AI33) -> 45 | AJ34: =AVERAGE(AJ3:AJ33) -> 68910.5 | AK34: =AVERAGE(AK3:AK33) -> 88.33333333 | AL34: =AVERAGE(AL3:AL33) -> 17 | AM34: =AVERAGE(AM3:AM33) -> 75515.7 | AN34: 42069 | AO34: 42 | AP34: 1.6429 | AQ34: 33 | AR34: 44 | AS34: 1797.992857 | AU34: 5 | AV34: 0.5952 | AW34: 0.0391
A35: 月度综合值 | B35: =SUM(B3:B33) -> 89910 | C35: =SUM(C3:C33) -> 34560 | D35: / | E35: / | F35: / | G35: / | H35: / | I35: / | J35: / | K35: / | L35: / | M35: / | N35: =SUM(N3:N33) -> 666660 | O35: =SUM(O3:O33) -> 33330 | P35: / | Q35: / | R35: 10440 | S35: 63660 | T35: 96960 | U35: / | V35: / | W35: / | X35: 1837071 | Y35: 1020 | Z35: 1.26 | AA35: 21.588 | AB35: 24.28571429 | AC35: 455.985 | AD35: 49399.54545 | AE35: 3540 | AF35: 9690 | AG35: 6360 | AH35: 6660 | AI35: 1350 | AJ35: 2067315 | AK35: 2650 | AL35: 510 | AM35: 2265471 | AN35: 1262070 | AO35: 1260 | AP35: 49.287 | AQ35: 990 | AR35: 1320 | AS35: 53939.78571 | AT35: 990 | AU35: 150 | AV35: 17.856 | AW35: 1.173 | AX35: 1.095 | AY35: 999990 | AZ35: 13001 | BA35: 1265481 | BB35: 0 | BC35: 58760.67 | BD35: 16350 | BE35: 111.6 | BF35: 22.03106261 | BG35: 29659.8 | BH35: 4560 | BI35: 195 | BJ35: 41.21740538 | BK35: 404.1 | BL35: 1643

Sheet 钻展
A1: 星期 | B1: 日期 | C1: 展现 | D1: 点击 | E1: 消耗 (元) | F1: CTR | G1: CPC | H1: CPM | I1: 宝贝收藏数 | J1: 宝贝收藏成本 | K1: 店铺收藏数 | L1: 店铺收藏成本 | M1: 顾客订单数 | N1: 加购数 | O1: 跳失率 | P1: 预算 | Q1: 消耗率 | R1: 销售额 | S1: 转化率 | T1: 当日ROI
A2: =TEXT(B2,"aaa") -> 周日 | B2: 42309 | C2: 16621 | D2: 152 | E2: 988.66 | F2: 0.0091 | G2: 6.5 | H2: 59.48 | I2: 1 | J2: =E2/I2 -> 988.66 | K2: 1 | L2: =E2/K2 -> 988.66 | M2: 1 | N2: 32 | O2: 0.43 | P2: 1000 | Q2: =E2/P2 -> 0.98866 | R2: 1400 | S2: =M2/D2 -> 0.006578947368 | T2: =IFERROR(R2/E2,0) -> 1.416058099
A3: 周一 | B3: 42310 | C3: 16621 | D3: 152 | E3: 988.66 | F3: 0.0091 | G3: 6.5 | H3: 59.48 | I3: 3 | J3: =E3/I3 -> 329.5533333 | K3: 3 | L3: =E3/K3 -> 329.5533333 | M3: 2 | N3: 38 | O3: 0.66 | P3: 1100 | Q3: =IFERROR(E3/P3,0) -> 0.8987818182 | R3: 1400 | S3: =M3/D3 -> 0.01315789474 | T3: 1.416058099
A4: 周二 | B4: 42311 | C4: 16621 | D4: 152 | E4: 988.66 | F4: 0.0091 | G4: 6.5 | H4: 59.48 | I4: 5 | J4: 197.732 | K4: 5 | L4: 197.732 | M4: 3 | N4: 44 | O4: 0.43 | P4: 1200 | Q4: 0.8238833333 | R4: 1400 | S4: 0.01973684211 | T4: 1.416058099
A5: 周三 | B5: 42312 | C5: 16621 | D5: 152 | E5: 988.66 | F5: 0.0091 | G5: 6.5 | H5: 59.48 | I5: 7 | J5: 141.2371429 | K5: 7 | L5: 141.2371429 | M5: 4 | N5: 50 | O5: 0.5066666667 | P5: 1300 | Q5: 0.7605076923 | R5: 1400 | S5: 0.02631578947 | T5: 1.416058099
A6: 周四 | B6: 42313 | C6: 16621 | D6: 152 | E6: 988.66 | F6: 0.0091 | G6: 6.5 | H6: 59.48 | I6: 9 | J6: 109.8511111 | K6: 9 | L6: 109.8511111 | M6: 5 | N6: 56 | O6: 0.5066666667 | P6: 1400 | Q6: 0.7061857143 | R6: 1400 | S6: 0.03289473684 | T6: 1.416058099
A7: 周五 | B7: 42314 | C7: 16621 | D7: 152 | E7: 988.66 | F7: 0.0091 | G7: 6.5 | H7: 59.48 | I7: 11 | J7: 89.87818182 | K7: 11 | L7: 89.87818182 | M7: 6 | N7: 62 | O7: 0.5066666667 | P7: 1500 | Q7: 0.6591066667 | R7: 1400 | S7: 0.03947368421 | T7: 1.416058099
A8: 周六 | B8: 42315 | C8: 16621 | D8: 152 | E8: 988.66 | F8: 0.0091 | G8: 6.5 | H8: 59.48 | I8: 13 | J8: 76.05076923 | K8: 13 | L8: 76.05076923 | M8: 7 | N8: 68 | O8: 0.5066666667 | P8: 1600 | Q8: 0.6179125 | R8: 1400 | S8: 0.04605263158 | T8: 1.416058099
A9: 周日 | B9: 42316 | C9: 16621 | D9: 152 | E9: 988.66 | F9: 0.0091 | G9: 6.5 | H9: 59.48 | I9: 15 | J9: 65.91066667 | K9: 15 | L9: 65.91066667 | M9: 8 | N9: 74 | O9: 0.5066666667 | P9: 1700 | Q9: 0.5815647059 | R9: 1400 | S9: 0.05263157895 | T9: 1.416058099
A10: 周一 | B10: 42317 | C10: 16621 | D10: 152 | E10: 988.66 | F10: 0.0091 | G10: 6.5 | H10: 59.48 | I10: 17 | J10: 58.15647059 | K10: 17 | L10: 58.15647059 | M10: 9 | N10: 80 | O10: 0.5066666667 | P10: 1800 | Q10: 0.5492555556 | R10: 1400 | S10: 0.05921052632 | T10: 1.416058099
A11: 周二 | B11: 42318 | C11: 16621 | D11: 152 | E11: 988.66 | F11: 0.0091 | G11: 6.5 | H11: 59.48 | I11: 19 | J11: 52.03473684 | K11: 19 | L11: 52.03473684 | M11: 10 | N11: 86 | O11: 0.5066666667 | P11: 1900 | Q11: 0.5203473684 | R11: 1400 | S11: 0.06578947368 | T11: 1.416058099
A12: 周三 | B12: 42319 | C12: 16621 | D12: 152 | E12: 988.66 | F12: 0.0091 | G12: 6.5 | H12: 59.48 | I12: 21 | J12: 47.07904762 | K12: 21 | L12: 47.07904762 | M12: 11 | N12: 92 | O12: 0.5066666667 | P12: 2000 | Q12: 0.49433 | R12: 1400 | S12: 0.07236842105 | T12: 1.416058099
A13: 周四 | B13: 42320 | C13: 16621 | D13: 152 | E13: 988.66 | F13: 0.0091 | G13: 6.5 | H13: 59.48 | I13: 23 | J13: 42.98521739 | K13: 23 | L13: 42.98521739 | M13: 12 | N13: 98 | O13: 0.5066666667 | P13: 2100 | Q13: 0.4707904762 | R13: 1400 | S13: 0.07894736842 | T13: 1.416058099
A14: 周五 | B14: 42321 | C14: 16621 | D14: 152 | E14: 988.66 | F14: 0.0091 | G14: 6.5 | H14: 59.48 | I14: 25 | J14: 39.5464 | K14: 25 | L14: 39.5464 | M14: 13 | N14: 104 | O14: 0.5066666667 | P14: 2200 | Q14: 0.4493909091 | R14: 1400 | S14: 0.08552631579 | T14: 1.416058099
A15: 周六 | B15: 42322 | C15: 16621 | D15: 152 | E15: 988.66 | F15: 0.0091 | G15: 6.5 | H15: 59.48 | I15: 27 | J15: 36.61703704 | K15: 33 | L15: 29.95939394 | M15: 14 | N15: 110 | O15: 0.5066666667 | P15: 2300 | Q15: 0.4298521739 | R15: 1400 | S15: 0.09210526316 | T15: 1.416058099
A16: 周日 | B16: 42323 | C16: 16621 | D16: 152 | E16: 988.66 | F16: 0.0091 | G16: 6.5 | H16: 59.48 | I16: 29 | J16: 34.09172414 | K16: 29 | L16: 34.09172414 | M16: 15 | N16: 116 | O16: 0.5066666667 | P16: 2400 | Q16: 0.4119416667 | R16: 1400 | S16: 0.09868421053 | T16: 1.416058099
A17: 周一 | B17: 42324 | C17: 16621 | D17: 152 | E17: 988.66 | F17: 0.0091 | G17: 6.5 | H17: 59.48 | I17: 31 | J17: 31.89225806 | K17: 31 | L17: 31.89225806 | M17: 16 | N17: 122 | O17: 0.5066666667 | P17: 2500 | Q17: 0.395464 | R17: 1400 | S17: 0.1052631579 | T17: 1.416058099
A18: 周二 | B18: 42325 | C18: 16621 | D18: 152 | E18: 988.66 | F18: 0.0091 | G18: 6.5 | H18: 59.48 | I18: 33 | J18: 29.95939394 | K18: 33 | L18: 29.95939394 | M18: 17 | N18: 128 | O18: 0.5066666667 | P18: 2600 | Q18: 0.3802538462 | R18: 1400 | S18: 0.1118421053 | T18: 1.416058099
A19: 周三 | B19: 42326 | C19: 16621 | D19: 152 | E19: 988.66 | F19: 0.0091 | G19: 6.5 | H19: 59.48 | I19: 35 | J19: 28.24742857 | K19: 35 | L19: 28.24742857 | M19: 18 | N19: 134 | O19: 0.5066666667 | P19: 2700 | Q19: 0.3661703704 | R19: 1400 | S19: 0.1184210526 | T19: 1.416058099
A20: 周四 | B20: 42327 | C20: 16621 | D20: 152 | E20: 988.66 | F20: 0.0091 | G20: 6.5 | H20: 59.48 | I20: 37 | J20: 26.72054054 | K20: 37 | L20: 26.72054054 | M20: 19 | N20: 140 | O20: 0.5066666667 | P20: 2800 | Q20: 0.3530928571 | R20: 1400 | S20: 0.125 | T20: 1.416058099
A21: 周五 | B21: 42328 | C21: 16621 | D21: 152 | E21: 988.66 | F21: 0.0091 | G21: 6.5 | H21: 59.48 | I21: 39 | J21: 25.35025641 | K21: 39 | L21: 25.35025641 | M21: 20 | N21: 146 | O21: 0.5066666667 | P21: 2900 | Q21: 0.3409172414 | R21: 1400 | S21: 0.1315789474 | T21: 1.416058099
A22: 周六 | B22: 42329 | C22: 16621 | D22: 152 | E22: 988.66 | F22: 0.0091 | G22: 6.5 | H22: 59.48 | I22: 41 | J22: 24.11365854 | K22: 41 | L22: 24.11365854 | M22: 21 | N22: 152 | O22: 0.5066666667 | P22: 3000 | Q22: 0.3295533333 | R22: 1400 | S22: 0.1381578947 | T22: 1.416058099
A23: 周日 | B23: 42330 | C23: 16621 | D23: 152 | E23: 988.66 | F23: 0.0091 | G23: 6.5 | H23: 59.48 | I23: 43 | J23: 22.99209302 | K23: 43 | L23: 22.99209302 | M23: 22 | N23: 158 | O23: 0.5066666667 | P23: 3100 | Q23: 0.3189225806 | R23: 1400 | S23: 0.1447368421 | T23: 1.416058099
A24: 周一 | B24: 42331 | C24: 16621 | D24: 152 | E24: 988.66 | F24: 0.0091 | G24: 6.5 | H24: 59.48 | I24: 45 | J24: 21.97022222 | K24: 45 | L24: 21.97022222 | M24: 23 | N24: 164 | O24: 0.5066666667 | P24: 3200 | Q24: 0.30895625 | R24: 1400 | S24: 0.1513157895 | T24: 1.416058099
A25: 周二 | B25: 42332 | C25: 16621 | D25: 152 | E25: 988.66 | F25: 0.0091 | G25: 6.5 | H25: 59.48 | I25: 47 | J25: 21.03531915 | K25: 47 | L25: 21.03531915 | M25: 24 | N25: 170 | O25: 0.5066666667 | P25: 3300 | Q25: 0.2995939394 | R25: 1400 | S25: 0.1578947368 | T25: 1.416058099
A26: 周三 | B26: 42333 | C26: 16621 | D26: 152 | E26: 988.66 | F26: 0.0091 | G26: 6.5 | H26: 59.48 | I26: 49 | J26: 20.17673469 | K26: 49 | L26: 20.17673469 | M26: 25 | N26: 176 | O26: 0.5066666667 | P26: 3400 | Q26: 0.2907823529 | R26: 1400 | S26: 0.1644736842 | T26: 1.416058099
A27: 周四 | B27: 42334 | C27: 16621 | D27: 152 | E27: 988.66 | F27: 0.0091 | G27: 6.5 | H27: 59.48 | I27: 51 | J27: 19.3854902 | K27: 51 | L27: 19.3854902 | M27: 26 | N27: 182 | O27: 0.5066666667 | P27: 3500 | Q27: 0.2824742857 | R27: 1400 | S27: 0.1710526316 | T27: 1.416058099
A28: 周五 | B28: 42335 | C28: 16621 | D28: 152 | E28: 988.66 | F28: 0.0091 | G28: 6.5 | H28: 59.48 | I28: 53 | J28: 18.65396226 | K28: 53 | L28: 18.65396226 | M28: 27 | N28: 188 | O28: 0.5066666667 | P28: 3600 | Q28: 0.2746277778 | R28: 1400 | S28: 0.1776315789 | T28: 1.416058099
A29: 周六 | B29: 42336 | C29: 16621 | D29: 152 | E29: 988.66 | F29: 0.0091 | G29: 6.5 | H29: 59.48 | I29: 55 | J29: 17.97563636 | K29: 55 | L29: 17.97563636 | M29: 28 | N29: 194 | O29: 0.5066666667 | P29: 3700 | Q29: 0.2672054054 | R29: 1400 | S29: 0.1842105263 | T29: 1.416058099
A30: 周日 | B30: 42337 | C30: 16621 | D30: 152 | E30: 988.66 | F30: 0.0091 | G30: 6.5 | H30: 59.48 | I30: 57 | J30: 17.34491228 | K30: 57 | L30: 17.34491228 | M30: 29 | N30: 200 | O30: 0.5066666667 | P30: 3800 | Q30: 0.2601736842 | R30: 150 | S30: 0.1907894737 | T30: 0.1517205106
A31: 周一 | B31: 42338 | C31: 16621 | D31: 152 | E31: 988.66 | F31: 0.0091 | G31: 6.5 | H31: 59.48 | I31: 59 | J31: 16.75694915 | K31: 59 | L31: 16.75694915 | M31: 30 | N31: 206 | O31: 0.5066666667 | P31: 3900 | Q31: 0.2535025641 | R31: 1400 | S31: 0.1973684211 | T31: 1.416058099
A32: 周六 | Q32: 0 | T32: 0
B33: 月度平均值 | C33: =AVERAGE(C2:C32) -> 16621 | D33: 152 | E33: 988.66 | F33: 0.0091 | G33: 6.5 | H33: 59.48 | I33: 30 | J33: =AVERAGE(J2:J32) -> 88.39862313 | K33: 30.2 | L33: 88.1767017 | M33: 15.5 | P33: 2450 | Q33: 0.4543290667 | R33: 1358.333333 | S33: 0.1019736842 | T33: 1.373913513
B34: 月度综合值 | C34: =SUM(C2:C32) -> 498630 | D34: =SUM(D2:D32) -> 4560 | E34: 29659.8

Sheet 直通车
A1: 日期 | B1: 花费 | C1: 展现量 | D1: 点击量 | E1: PPC | F1: CTR | G1: 总成交金额 | H1: 总成交笔数 | I1: 总收藏 | J1: 总加购 | K1: 转化率 | L1: ROI | M1: 高于8分词占比
A2: 2015-11-01 | B2: 2026.23 | C2: 33620 | D2: 545 | E2: 3.72 | F2: 0.0162 | G2: 1488 | H2: 1 | I2: 11 | J2: 14 | K2: 0.0018 | L2: =IFERROR(G2/B2,0) -> 0.7343687538 | M2: 0.33
A3: 2015-11-02 | B3: 2026.23 | C3: 33620 | D3: 545 | E3: 3.72 | F3: 0.0162 | G3: 1488 | H3: 1 | I3: 11 | J3: 14 | K3: 0.0018 | L3: =IFERROR(G3/B3,0) -> 0.7343687538 | M3: 1.33
A4: 2015-11-03 | B4: 2026.23 | C4: 33620 | D4: 545 | E4: 3.72 | F4: 0.0162 | G4: 1488 | H4: 1 | I4: 11 | J4: 14 | K4: 0.0018 | L4: 0.7343687538 | M4: 2.33
A5: 2015-11-04 | B5: 2026.23 | C5: 33620 | D5: 545 | E5: 3.72 | F5: 0.0162 | G5: 1488 | H5: 1 | I5: 11 | J5: 14 | K5: 0.0018 | L5: 0.7343687538 | M5: 3.33
A6: 2015-11-05 | B6: 2026.23 | C6: 33620 | D6: 545 | E6: 3.72 | F6: 0.0162 | G6: 1488 | H6: 1 | I6: 11 | J6: 14 | K6: 0.0018 | L6: 0.7343687538 | M6: 4.33
A7: 2015-11-06 | B7: 2026.23 | C7: 33620 | D7: 545 | E7: 3.72 | F7: 0.0162 | G7: 1488 | H7: 1 | I7: 11 | J7: 14 | K7: 0.0018 | L7: 0.7343687538 | M7: 5.33
A8: 2015-11-07 | B8: 2026.23 | C8: 33620 | D8: 545 | E8: 3.72 | F8: 0.0162 | G8: 1488 | H8: 1 | I8: 11 | J8: 14 | K8: 0.0018 | L8: 0.7343687538 | M8: 6.33
A9: 2015-11-08 | B9: 2026.23 | C9: 33620 | D9: 545 | E9: 3.72 | F9: 0.0162 | G9: 1488 | H9: 1 | I9: 11 | J9: 14 | K9: 0.0018 | L9: 0.7343687538 | M9: 7.33
A10: 2015-11-09 | B10: 2026.23 | C10: 33620 | D10: 545 | E10: 3.72 | F10: 0.0162 | G10: 1488 | H10: 1 | I10: 11 | J10: 14 | K10: 0.0018 | L10: 0.7343687538 | M10: 8.33
A11: 2015-11-10 | B11: 2026.23 | C11: 33620 | D11: 545 | E11: 3.72 | F11: 0.0162 | G11: 1488 | H11: 1 | I11: 11 | J11: 14 | K11: 0.0018 | L11: 0.7343687538 | M11: 9.33
A12: 2015-11-11 | B12: 2026.23 | C12: 33620 | D12: 545 | E12: 3.72 | F12: 0.0162 | G12: 1488 | H12: 1 | I12: 11 | J12: 14 | K12: 0.0018 | L12: 0.7343687538 | M12: 10.33
A13: 2015-11-12 | B13: 2026.23 | C13: 33620 | D13: 545 | E13: 3.72 | F13: 0.0162 | G13: 1488 | H13: 1 | I13: 11 | J13: 14 | K13: 0.0018 | L13: 0.7343687538 | M13: 11.33
A14: 2015-11-13 | B14: 2026.23 | C14: 33620 | D14: 545 | E14: 3.72 | F14: 0.0162 | G14: 1488 | H14: 1 | I14: 11 | J14: 14 | K14: 0.0018 | L14: 0.7343687538 | M14: 12.33
A15: 2015-11-14 | B15: 2026.23 | C15: 33620 | D15: 545 | E15: 3.72 | F15: 0.0162 | G15: 1488 | H15: 1 | I15: 11 | J15: 14 | K15: 0.0018 | L15: 0.7343687538 | M15: 13.33
A16: 2015-11-15 | B16: 2026.23 | C16: 33620 | D16: 545 | E16: 3.72 | F16: 0.0162 | G16: 1488 | H16: 1 | I16: 11 | J16: 14 | K16: 0.0018 | L16: 0.7343687538 | M16: 14.33
A17: 2015-11-16 | B17: 2026.23 | C17: 33620 | D17: 545 | E17: 3.72 | F17: 0.0162 | G17: 1488 | H17: 1 | I17: 11 | J17: 14 | K17: 0.0018 | L17: 0.7343687538 | M17: 15.33
A18: 2015-11-17 | B18: 2026.23 | C18: 33620 | D18: 545 | E18: 3.72 | F18: 0.0162 | G18: 1488 | H18: 1 | I18: 11 | J18: 14 | K18: 0.0018 | L18: 0.7343687538 | M18: 16.33
A19: 2015-11-18 | B19: 2026.23 | C19: 33620 | D19: 545 | E19: 3.72 | F19: 0.0162 | G19: 1488 | H19: 1 | I19: 11 | J19: 14 | K19: 0.0018 | L19: 0.7343687538 | M19: 17.33
A20: 2015-11-19 | B20: 2026.23 | C20: 33620 | D20: 545 | E20: 3.72 | F20: 0.0162 | G20: 1488 | H20: 1 | I20: 11 | J20: 14 | K20: 0.0018 | L20: 0.7343687538 | M20: 18.33
A21: 2015-11-20 | B21: 2026.23 | C21: 33620 | D21: 545 | E21: 3.72 | F21: 0.0162 | G21: 1488 | H21: 1 | I21: 11 | J21: 14 | K21: 0.0018 | L21: 0.7343687538 | M21: 19.33
A22: 2015-11-21 | B22: 2026.23 | C22: 33620 | D22: 545 | E22: 3.72 | F22: 0.0162 | G22: 1488 | H22: 1 | I22: 11 | J22: 14 | K22: 0.0018 | L22: 0.7343687538 | M22: 20.33
A23: 2015-11-22 | B23: 2026.23 | C23: 33620 | D23: 545 | E23: 3.72 | F23: 0.0162 | G23: 1488 | H23: 1 | I23: 11 | J23: 14 | K23: 0.0018 | L23: 0.7343687538 | M23: 21.33
A24: 2015-11-23 | B24: 2026.23 | C24: 33620 | D24: 545 | E24: 3.72 | F24: 0.0162 | G24: 1488 | H24: 1 | I24: 11 | J24: 14 | K24: 0.0018 | L24: 0.7343687538 | M24: 22.33
A25: 2015-11-24 | B25: 2026.23 | C25: 33620 | D25: 545 | E25: 3.72 | F25: 0.0162 | G25: 1488 | H25: 1 | I25: 11 | J25: 14 | K25: 0.0018 | L25: 0.7343687538 | M25: 23.33
A26: 2015-11-25 | B26: 2026.23 | C26: 33620 | D26: 545 | E26: 3.72 | F26: 0.0162 | G26: 1488 | H26: 1 | I26: 11 | J26: 14 | K26: 0.0018 | L26: 0.7343687538 | M26: 24.33
A27: 2015-11-26 | B27: 2026.23 | C27: 33620 | D27: 545 | E27: 3.72 | F27: 0.0162 | G27: 1488 | H27: 1 | I27: 11 | J27: 14 | K27: 0.0018 | L27: 0.7343687538 | M27: 25.33
A28: 2015-11-27 | B28: 2026.23 | C28: 33620 | D28: 545 | E28: 3.72 | F28: 0.0162 | G28: 1488 | H28: 1 | I28: 11 | J28: 14 | K28: 0.0018 | L28: 0.7343687538 | M28: 26.33
A29: 2015-11-28 | B29: 2026.23 | C29: 33620 | D29: 545 | E29: 3.72 | F29: 0.0162 | G29: 1488 | H29: 1 | I29: 11 | J29: 14 | K29: 0.0018 | L29: 0.7343687538 | M29: 27.33
A30: 2015-11-29 | B30: 2026.23 | C30: 33620 | D30: 545 | E30: 3.72 | F30: 0.0162 | G30: 1488 | H30: 1 | I30: 11 | J30: 14 | K30: 0.0018 | L30: 0.7343687538 | M30: 28.33
A31: 2015-11-30 | B31: 2026.23 | C31: 33620 | D31: 545 | E31: 3.72 | F31: 0.0162 | G31: 1488 | H31: 1 | I31: 11 | J31: 14 | K31: 0.0018 | L31: 0.7343687538 | M31: 29.33
L32: =IFERROR(G32/B32,0) -> 0
A33: 月度平均值 | B33: =SUBTOTAL(101,B2:B32) -> 2026.23 | D33: 545 | E33: 3.72 | G33: 1488 | H33: =SUBTOTAL(101,H2:H32) -> 1 | I33: 11 | K33: 0.0018 | L33: =SUBTOTAL(101,L2:L32) -> 0.7106794392 | M33: 14.83
A34: 月度综合值

Sheet 淘客
A1: 日期 | B1: 花费 | C1: 成交 | D1: 淘客UV | E1: ROI
A2: 2015-11-01 | B2: 13.47 | C2: 134.64 | D2: 23 | E2: 22
A3: 2015-11-02 | B3: 13.47 | C3: 134.64 | D3: 25 | E3: =IFERROR(C3/B3,0) -> 9.995545657
A4: 2015-11-03 | B4: 13.47 | C4: 134.64 | D4: 27 | E4: 9.995545657
A5: 2015-11-04 | B5: 13.47 | C5: 134.64 | D5: 29 | E5: 9.995545657
A6: 2015-11-05 | B6: 13.47 | C6: 134.64 | D6: 31 | E6: 9.995545657
A7: 2015-11-06 | B7: 13.47 | C7: 134.64 | D7: 33 | E7: 9.995545657
A8: 2015-11-07 | B8: 13.47 | C8: 134.64 | D8: 35 | E8: 9.995545657
A9: 2015-11-08 | B9: 13.47 | C9: 134.64 | D9: 37 | E9: 9.995545657
A10: 2015-11-09 | B10: 13.47 | C10: 134.64 | D10: 39 | E10: 9.995545657
A11: 2015-11-10 | B11: 13.47 | C11: 134.64 | D11: 41 | E11: 9.995545657
A12: 2015-11-11 | B12: 13.47 | C12: 134.64 | D12: 43 | E12: 9.995545657
A13: 2015-11-12 | B13: 13.47 | C13: 134.64 | D13: 45 | E13: 9.995545657
A14: 2015-11-13 | B14: 13.47 | C14: 134.64 | D14: 47 | E14: 9.995545657
A15: 2015-11-14 | B15: 13.47 | C15: 134.64 | D15: 49 | E15: 9.995545657
A16: 2015-11-15 | B16: 13.47 | C16: 134.64 | D16: 51 | E16: 9.995545657
A17: 2015-11-16 | B17: 13.47 | C17: 134.64 | D17: 53 | E17: 9.995545657
A18: 2015-11-17 | B18: 13.47 | C18: 134.64 | D18: 55 | E18: 9.995545657
A19: 2015-11-18 | B19: 13.47 | C19: 134.64 | D19: 57 | E19: 9.995545657
A20: 2015-11-19 | B20: 13.47 | C20: 134.64 | D20: 59 | E20: 9.995545657
A21: 2015-11-20 | B21: 13.47 | C21: 134.64 | D21: 61 | E21: 9.995545657
A22: 2015-11-21 | B22: 13.47 | C22: 134.64 | D22: 63 | E22: 9.995545657
A23: 2015-11-22 | B23: 13.47 | C23: 134.64 | D23: 65 | E23: 9.995545657
A24: 2015-11-23 | B24: 13.47 | C24: 134.64 | D24: 67 | E24: 9.995545657
A25: 2015-11-24 | B25: 13.47 | C25: 134.64 | D25: 69 | E25: 9.995545657
A26: 2015-11-25 | B26: 13.47 | C26: 134.64 | D26: 71 | E26: 9.995545657
A27: 2015-11-26 | B27: 13.47 | C27: 134.64 | D27: 73 | E27: 9.995545657
A28: 2015-11-27 | B28: 13.47 | C28: 134.64 | D28: 75 | E28: 9.995545657
A29: 2015-11-28 | B29: 13.47 | C29: 134.64 | D29: 77 | E29: 9.995545657
A30: 2015-11-29 | B30: 13.47 | C30: 134.64 | D30: 79 | E30: 9.995545657
A31: 2015-11-30 | B31: 13.47 | C31: 134.64 | D31: 81 | E31: 9.995545657
D32: 83
A33: 月度平均值 | B33: =SUBTOTAL(101,B2:B32) -> 13.47 | C33: 134.64 | E33: =IFERROR(C33/B33,0) -> 9.995545657
A34: 月度综合值 | B34: 13.47 | C34: 134.64 | E34: =IFERROR(C34/B34,0) -> 9.995545657

Sheet 客服
A1: 日期 | B1: 访客数 | C1: 询单数 | D1: 询单率 | E1: 下单数 | F1: 询单转化率 | G1: 响应时间
A2: 2015-11-01 | B2: 2026.23 | C2: 33620 | D2: 0.22 | E2: 3.72 | F2: 0.0162 | G2: 1488
A3: 2015-11-02 | B3: 2026.23 | C3: 33620 | D3: 1.22 | E3: 4.72 | F3: 0.0162 | G3: 1489
A4: 2015-11-03 | B4: 2026.23 | C4: 33620 | D4: 2.22 | E4: 5.72 | F4: 0.0162 | G4: 1490
A5: 2015-11-04 | B5: 2026.23 | C5: 33620 | D5: 3.22 | E5: 6.72 | F5: 0.0162 | G5: 1491
A6: 2015-11-05 | B6: 2026.23 | C6: 33620 | D6: 4.22 | E6: 7.72 | F6: 0.0162 | G6: 1492
A7: 2015-11-06 | B7: 2026.23 | C7: 33620 | D7: 5.22 | E7: 8.72 | F7: 0.0162 | G7: 1493
A8: 2015-11-07 | B8: 2026.23 | C8: 33620 | D8: 6.22 | E8: 9.72 | F8: 0.0162 | G8: 1494
A9: 2015-11-08 | B9: 2026.23 | C9: 33620 | D9: 7.22 | E9: 10.72 | F9: 0.0162 | G9: 1495
A10: 2015-11-09 | B10: 2026.23 | C10: 33620 | D10: 8.22 | E10: 11.72 | F10: 0.0162 | G10: 1496
A11: 2015-11-10 | B11: 2026.23 | C11: 33620 | D11: 9.22 | E11: 12.72 | F11: 0.0162 | G11: 1497
A12: 2015-11-11 | B12: 2026.23 | C12: 33620 | D12: 10.22 | E12: 13.72 | F12: 0.0162 | G12: 1498
A13: 2015-11-12 | B13: 2026.23 | C13: 33620 | D13: 11.22 | E13: 14.72 | F13: 0.0162 | G13: 1499
A14: 2015-11-13 | B14: 2026.23 | C14: 33620 | D14: 12.22 | E14: 15.72 | F14: 0.0162 | G14: 1500
A15: 2015-11-14 | B15: 2026.23 | C15: 33620 | D15: 13.22 | E15: 16.72 | F15: 0.0162 | G15: 1501
A16: 2015-11-15 | B16: 2026.23 | C16: 33620 | D16: 14.22 | E16: 17.72 | F16: 0.0162 | G16: 1502
A17: 2015-11-16 | B17: 2026.23 | C17: 33620 | D17: 15.22 | E17: 18.72 | F17: 0.0162 | G17: 1503
A18: 2015-11-17 | B18: 2026.23 | C18: 33620 | D18: 16.22 | E18: 19.72 | F18: 0.0162 | G18: 1504
A19: 2015-11-18 | B19: 2026.23 | C19: 33620 | D19: 17.22 | E19: 20.72 | F19: 0.0162 | G19: 1505
A20: 2015-11-19 | B20: 2026.23 | C20: 33620 | D20: 18.22 | E20: 21.72 | F20: 0.0162 | G20: 1506
A21: 2015-11-20 | B21: 2026.23 | C21: 33620 | D21: 19.22 | E21: 22.72 | F21: 0.0162 | G21: 1507
A22: 2015-11-21 | B22: 2026.23 | C22: 33620 | D22: 20.22 | E22: 23.72 | F22: 0.0162 | G22: 1508
A23: 2015-11-22 | B23: 2026.23 | C23: 33620 | D23: 21.22 | E23: 24.72 | F23: 0.0162 | G23: 1509
A24: 2015-11-23 | B24: 2026.23 | C24: 33620 | D24: 22.22 | E24: 25.72 | F24: 0.0162 | G24: 1510
A25: 2015-11-24 | B25: 2026.23 | C25: 33620 | D25: 23.22 | E25: 26.72 | F25: 0.0162 | G25: 1511
A26: 2015-11-25 | B26: 2026.23 | C26: 33620 | D26: 24.22 | E26: 27.72 | F26: 0.0162 | G26: 1512
A27: 2015-11-26 | B27: 2026.23 | C27: 33620 | D27: 25.22 | E27: 28.72 | F27: 0.0162 | G27: 1513
A28: 2015-11-27 | B28: 2026.23 | C28: 33620 | D28: 26.22 | E28: 29.72 | F28: 0.0162 | G28: 1514
A29: 2015-11-28 | B29: 2026.23 | C29: 33620 | D29: 27.22 | E29: 30.72 | F29: 0.0162 | G29: 1515
A30: 2015-11-29 | B30: 2026.23 | C30: 33620 | D30: 28.22 | E30: 31.72 | F30: 0.0162 | G30: 1516
A31: 2015-11-30 | B31: 2026.23 | C31: 33620 | D31: 29.22 | E31: 32.72 | F31: 0.0162 | G31: 1517
A33: 月度平均值 | B33: =SUBTOTAL(101,B2:B32) -> 2026.23 | D33: 14.72 | E33: 18.22 | G33: 1502.5
A34: 月度综合值
